2CCN - Level 2 Cost Centre Name,,9CCN - Level 9 Cost Centre Name,9CCC - Level 9 Cost Centre Code,9AN - Level 9 Account Name,9AC - Level 9 Account Code,Transaction Description,Date Paid,Transaction Reference,Analysed Amount,2AC - Level 2 Account Codes,Supplier Name,Supplier Code
Gloucester City Council,23UE,Building Control,PT400,Basic Pay - Temporary Staff,2751,Temporary staff w/e 09/11/2014,01/12/2014,394211,1518.24,NET,The Oyster Partnership Limited,14900T
Gloucester City Council,23UE,Building Control,PT400,Basic Pay - Temporary Staff,2751,temporary staff W/E 16/11/14,01/12/2014,394348,1574.26,NET,The Oyster Partnership Limited,14900T
Gloucester City Council,23UE,Building Control,PT400,Basic Pay - Temporary Staff,2751,temporary staff w/e 09/11/2014,01/12/2014,394210,1632.45,NET,The Oyster Partnership Limited,14900T
Gloucester City Council,23UE,Building Control,PT400,Basic Pay - Temporary Staff,2751,Temporary staff W/E 16/11/14,01/12/2014,394349,1651.95,NET,The Oyster Partnership Limited,14900T
Gloucester City Council,23UE,Docks Complex - Services,RB100,Cleaning Materials,3600,CLEANING GOODS,01/12/2014,394555,150.32,NET,Core Hygiene Ltd,03885P
Gloucester City Council,23UE,Parks Contract Management,LP100,Maint Of Grounds - General,3030,PLAY EQUIPMENT SPARES,01/12/2014,394345,2024,NET,Russell Leisure Ltd,03577E
Gloucester City Council,23UE,Retail Market - Landlord,HM300,Window Cleaning,3610,"Monthly Window Clean, Nov 2014",01/12/2014,394193,260,NET,Cornwall Cleaning Services,14050A
Gloucester City Council,23UE,Business Transformation & Tech,RT700,Operational Equipment <5000,5012,NOV14-NOV15 COVERAGE,02/12/2014,394360,5231.14,NET,Emerson Network Power Ltd,48138P
Gloucester City Council,23UE,Community Safety Projects,FP500,Basic Pay - Temporary Staff,2751,Temporary staff w/e 07/11/2014,02/12/2014,394220,543.85,NET,Travail Employment Ltd,49371W
Gloucester City Council,23UE,Community Safety Projects,FP500,Basic Pay - Temporary Staff,2751,Temporary staff w/e 14/11/14,02/12/2014,394466,571.74,NET,Travail Employment Ltd,49371W
Gloucester City Council,23UE,Docks Complex - Castlemeads Cp,RB210,General Repair/Maint Buildings,3000,CASTLEMEADS,02/12/2014,394582,262.72,NET,Rf Gardiner Limited,12299B
Gloucester City Council,23UE,REDACTED,REDACTED,REDACTED,REDACTED,REDACTED,02/12/2014,REDACTED,100,NET,REDACTED,REDACTED
Gloucester City Council,23UE,General Drainage Works,PY241,Contract Payments,0020,ST PETERS SCHOOL,02/12/2014,394579,3244,CAP,Mr M G Horton T/A H&T Property Maintenance,09210X
Gloucester City Council,23UE,REDACTED,REDACTED,REDACTED,REDACTED,REDACTED,02/12/2014,REDACTED,35,NET,REDACTED,REDACTED
Gloucester City Council,23UE,REDACTED,REDACTED,REDACTED,REDACTED,REDACTED,02/12/2014,REDACTED,40,NET,REDACTED,REDACTED
Gloucester City Council,23UE,Homelessness,CH120,Rent In Advance,5516,RIA & Deposit,02/12/2014,394714,484.6,NET,Cgt Lettings,05899H
Gloucester City Council,23UE,Homelessness Prevention,CH122,Fees For Services Received,5350,RIA & Deposit,02/12/2014,394714,500,NET,Cgt Lettings,05899H
Gloucester City Council,23UE,REDACTED,REDACTED,REDACTED,REDACTED,REDACTED,02/12/2014,REDACTED,406.75,NET,REDACTED,REDACTED
Gloucester City Council,23UE,Inhouse Training,EH200,Vocational Training,2970,Courses,02/12/2014,394641,790,NET,Aspire Sports & Cultural Trust,08135V
Gloucester City Council,23UE,Investment Property,RB500,General Repair/Maint Buildings,3000,CREM,02/12/2014,394576,28.62,NET,Rf Gardiner Limited,12299B
Gloucester City Council,23UE,Investment Property,RB500,General Repair/Maint Buildings,3000,EASTGATE MARKET,02/12/2014,394570,449.38,NET,Rf Gardiner Limited,12299B
Gloucester City Council,23UE,Investment Property,RB500,General Repair/Maint Buildings,3000,ROBINSWOOD HILL,02/12/2014,394577,24.63,NET,Rf Gardiner Limited,12299B
Gloucester City Council,23UE,Legal Services,RS200,Basic Pay - Temporary Staff,2751,Temporary staff w/e 16/11/2014.,02/12/2014,394356,447.78,NET,Premiere Employment Ltd,55468Z
Gloucester City Council,23UE,Off Street Car Parks,PP110,General Repair/Maint Buildings,3000,LONGSMITH ST,02/12/2014,394575,79.73,NET,Rf Gardiner Limited,12299B
Gloucester City Council,23UE,Off Street Car Parks,PP110,General Repair/Maint Buildings,3000,LONGSMITH ST,02/12/2014,394583,1472.01,NET,Rf Gardiner Limited,12299B
Gloucester City Council,23UE,Off Street Car Parks,PP110,General Repair/Maint Buildings,3000,STATION RD,02/12/2014,394584,543.12,NET,Rf Gardiner Limited,12299B
Gloucester City Council,23UE,REDACTED,REDACTED,REDACTED,REDACTED,REDACTED,03/12/2014,REDACTED,51,NET,REDACTED,REDACTED
Gloucester City Council,23UE,REDACTED,REDACTED,REDACTED,REDACTED,REDACTED,03/12/2014,REDACTED,29.75,NET,REDACTED,REDACTED
Gloucester City Council,23UE,REDACTED,REDACTED,REDACTED,REDACTED,REDACTED,03/12/2014,REDACTED,212.5,NET,REDACTED,REDACTED
Gloucester City Council,23UE,REDACTED,REDACTED,REDACTED,REDACTED,REDACTED,03/12/2014,REDACTED,40,NET,REDACTED,REDACTED
Gloucester City Council,23UE,REDACTED,REDACTED,REDACTED,REDACTED,REDACTED,03/12/2014,REDACTED,25,NET,REDACTED,REDACTED
Gloucester City Council,23UE,Countryside Unit,LP201,Contract Cleaning,3620,Cleaning Rangers Centre,03/12/2014,394822,130,NET,Cv Fisher Cleaning Services,14907C
Gloucester City Council,23UE,Docks Complex - Services,RB100,Repair/Maint Of Fixed Plant,3006,"North Warehouse, repairs",03/12/2014,394464,176.7,NET,Axiom Building Services,14908A
Gloucester City Council,23UE,Guildhall Bar And Caf�,LA210,Catering Provisions -Food,5110,Food,03/12/2014,394837,44.57,NET,Woodward Foodservice,10714F
Gloucester City Council,23UE,Homelessness,CH120,Board And Lodging,5515,Emergency Accommodation June 14,03/12/2014,387341,221.66,NET,Gloucestershire County Council,18650D
Gloucester City Council,23UE,Homelessness,CH120,Rent In Advance,5516,CREDITED ON 1600016333,03/12/2014,394854,74.17,NET,Gloucestershire County Council,18650D
Gloucester City Council,23UE,Legal Services,RS200,Basic Pay - Temporary Staff,2751,Temporary staff w/e 21/11/2014,03/12/2014,394362,608.99,NET,Sellick Partnership Group Ltd,11057C
Gloucester City Council,23UE,Legal Services,RS200,Basic Pay - Temporary Staff,2751,Temporary staff w/e 09/11/2014,03/12/2014,393895,1549.93,NET,Venn Group Ltd,04339P
Gloucester City Council,23UE,REDACTED,REDACTED,REDACTED,REDACTED,REDACTED,03/12/2014,REDACTED,10.5,NET,REDACTED,REDACTED
Gloucester City Council,23UE,Tic Theatre Ticket Sales,LT107,Materials For Sale,5080,"Ticket Sales, Fireworks 08/11/2014",03/12/2014,394849,3343,NET,Gloucester Round Table,53781L
Gloucester City Council,23UE,Tic Theatre Ticket Sales,LT107,Sale Of Goods And Services,9230,"Ticket Sales, Fireworks 08/11/2014",03/12/2014,394849,-139.29,NET,Gloucester Round Table,53781L
Gloucester City Council,23UE,Utilities,PT502,Electricity Supply,3110,NAVIGATION HOUSE,03/12/2014,394715,25.5,NET,Opus Energy (Corporate),12788B
Gloucester City Council,23UE,Aspire Admin Charges,LC105,Other Minor Income,9900,BAILIFF PAYMENTS 21/11/14,04/12/2014,394887,81,NET,Aspire Sports & Cultural Trust,08135V
Gloucester City Council,23UE,Blackfriars,LA609,Cleaning Materials,3600,Dec- Mar 2015,04/12/2014,393906,52.65,NET,Wessex Products (Leasing) Ltd,03684C
Gloucester City Council,23UE,Building Control,PT400,Vocational Training,2970,TRAINING COURSE,04/12/2014,394870,795,NET,Fire Service College Ltd,48047U
Gloucester City Council,23UE,Business Transformation & Tech,RT700,Computer Hardware Maintenance,5426,Service Charge Jan - Dec 2015,04/12/2014,393092,4361.76,NET,G4s Fire & Security Systems (Uk),13090X
Gloucester City Council,23UE,Business Transformation & Tech,RT700,Computer Hardware Maintenance,5426,service charge Jun14-Dec14,04/12/2014,388664,297.05,NET,G4s Fire & Security Systems (Uk),13090X
Gloucester City Council,23UE,City Museum Catering,LM202,Catering Provisions -Food,5110,Food,04/12/2014,394834,83.6,NET,Woodward Foodservice,10714F
Gloucester City Council,23UE,Civica Admin Charges,RT105,Postages,5400,Post 10/11 - 21/11 2014,04/12/2014,394878,1457.81,NET,Royal Mail S.Wales & South West,35830S
Gloucester City Council,23UE,Client Revs & Bens Contract,RT240,Bank Charges And Adjustments,5950,Probate Search,04/12/2014,394880,10,NET,Hm Courts & Tribunals Service,12497V
Gloucester City Council,23UE,Crematorium,HC200,Fees For Services Received,5350,Doctors Fees November 2014,04/12/2014,394883,316.88,NET,Dr R W Bell,01571P
Gloucester City Council,23UE,Crematorium,HC200,Fees For Services Received,5350,Doctors Fees November 2014,04/12/2014,394884,1033.52,NET,Dr D Martin,00890P
Gloucester City Council,23UE,Crematorium,HC200,Fees For Services Received,5350,Doctors Fees November 2014,04/12/2014,394885,824.64,NET,Dr C M Stretton,00306P
Gloucester City Council,23UE,Disabled Facilities Grants,CY013,Disabled Facility Grants,0074,Disabled Facilities Grant MDF5117,04/12/2014,394881,4161.5,CAP,Tpg Disableaids,51324R
Gloucester City Council,23UE,Docks Complex - Catering Servs,RB110,Catering Provisions -Food,5110,Food,04/12/2014,394841,25.56,NET,Taynton Farm Foods,09653F
Gloucester City Council,23UE,Docks Complex - Catering Servs,RB110,Catering Provisions -Food,5110,Food,04/12/2014,394842,397.05,NET,3663,55585U
Gloucester City Council,23UE,Environmental Planning,LM340,Fees For Services Received,5350,Advert 24/11/2014,04/12/2014,394874,379.81,NET,Local World Ltd,08556P
Gloucester City Council,23UE,Guildhall Bar And Caf�,LA210,Catering Provisions -Food,5110,Food,04/12/2014,394835,127.35,NET,Woodward Foodservice,10714F
Gloucester City Council,23UE,Guildhall Bar And Caf�,LA210,Catering Provisions -Food,5110,Food,04/12/2014,394836,107.34,NET,Woodward Foodservice,10714F
Gloucester City Council,23UE,Guildhall Bar And Caf�,LA210,Catering Provisions -Liquor,5111,Suremix,04/12/2014,394877,36.42,NET,Boc Ltd,59172L
Gloucester City Council,23UE,REDACTED,REDACTED,REDACTED,REDACTED,REDACTED,04/12/2014,REDACTED,300,NET,REDACTED,REDACTED
Gloucester City Council,23UE,Hmo Licences,HE520,Operational Equipment <5000,5012,2014/15 MEMBERSHIP,04/12/2014,394872,95,NET,Empty Homes Network,12954M
Gloucester City Council,23UE,REDACTED,REDACTED,REDACTED,REDACTED,REDACTED,04/12/2014,REDACTED,484.6,NET,REDACTED,REDACTED
Gloucester City Council,23UE,REDACTED,REDACTED,REDACTED,REDACTED,REDACTED,04/12/2014,REDACTED,660,NET,REDACTED,REDACTED
Gloucester City Council,23UE,Human Resources,EH100,Fees For Services Received,5350,Payroll Charges October 2014,04/12/2014,394219,2709.98,NET,Gloucestershire County Council,18650D
Gloucester City Council,23UE,National Express,LT105,Materials For Sale,5080,NOV 2014,04/12/2014,394871,11103,NET,National Express Ltd,31455K
Gloucester City Council,23UE,National Express,LT105,Sale Of Goods And Services,9230,NOV 2014,04/12/2014,394871,-1072.13,NET,National Express Ltd,31455K
Gloucester City Council,23UE,Westgate Leisure Area S106,LY155,Contract Payments,0020,Public consultation,04/12/2014,394876,2625,CAP,Peter Quinn Associates,12891L
Gloucester City Council,23UE,Cemeteries,HC300,Clothing,5200,Polo Shirts,05/12/2014,394912,107.38,NET,Elms & Elms,15054G
Gloucester City Council,23UE,Council Streetcare Team,HI101,Operational Equipment <5000,5012,Stray Dogs,05/12/2014,392095,352.25,NET,Enterprise (Aol) Ltd,06695G
Gloucester City Council,23UE,Docks Complex - Catering Servs,RB110,Catering Provisions -Food,5110,Food,05/12/2014,394838,398.75,NET,3663,55585U
Gloucester City Council,23UE,Docks Complex - Catering Servs,RB110,Catering Provisions -Food,5110,Food,05/12/2014,394839,307.24,NET,3663,55585U
Gloucester City Council,23UE,Docks Complex - Catering Servs,RB110,Catering Provisions -Food,5110,Food,05/12/2014,394840,325.51,NET,3663,55585U
Gloucester City Council,23UE,Guildhall Bar And Caf�,LA210,Catering Provisions -Food,5110,Milk,05/12/2014,394823,4.96,NET,Total Produce Gloucester,12645E
Gloucester City Council,23UE,REDACTED,REDACTED,REDACTED,REDACTED,REDACTED,05/12/2014,REDACTED,148,NET,REDACTED,REDACTED
Gloucester City Council,23UE,Investment Property,RB500,General Repair/Maint Buildings,3000,GUILDHALL,05/12/2014,393595,120,NET,Three Counties Drain Service,44033V
Gloucester City Council,23UE,Investment Property,RB500,Repair/Maint Of Fixed Plant,3006,"05/11/2014, filters for maintenance",05/12/2014,394472,217,NET,Mitchells (Gloucester) Ltd,30160U
Gloucester City Council,23UE,Parks Contract Management,LP100,Maint Of Grounds - General,3030,Randwick Park,05/12/2014,394420,248.4,NET,Enterprise (Aol) Ltd,06695G
Gloucester City Council,23UE,Planning Policy,PT300,Basic Pay - Temporary Staff,2751,Temporary staff w/e 02/11/2014,05/12/2014,393620,1760,NET,The Oyster Partnership Limited,14900T
Gloucester City Council,23UE,Tic Trading,LT110,Materials For Sale,5080,Goods for resale,05/12/2014,394806,3358.5,NET,Sportfolio Europe Lp,14456R
Gloucester City Council,23UE,Arts Educational Promotions,LA610,Basic Pay - Casual Staff,1411,22/10/2014 Education,08/12/2014,394819,100,NET,REDACTED,REDACTED
Gloucester City Council,23UE,Barge Arm Car Spaces,RB551,Service Charges,3020,service charge,08/12/2014,394724,1771.4,NET,Ash & Co Cs Llp (Barge Arm Car Park),12522Y
Gloucester City Council,23UE,REDACTED,REDACTED,REDACTED,REDACTED,REDACTED,08/12/2014,REDACTED,35,NET,REDACTED,REDACTED
Gloucester City Council,23UE,Building Control,PT400,Basic Pay - Temporary Staff,2751,Temporary staff w/e 23/11/14,08/12/2014,394785,1628.2,NET,The Oyster Partnership Limited,14900T
Gloucester City Council,23UE,Business Transformation & Tech,RT700,Computer Hardware <5000,5420,Officejet Pro,08/12/2014,394053,157,NET,Qual Technology,56512N
Gloucester City Council,23UE,Business Transformation & Tech,RT700,Computer Hardware <5000,5420,Officejet Pro,08/12/2014,394054,157,NET,Qual Technology,56512N
Gloucester City Council,23UE,Business Transformation & Tech,RT700,Computer Hardware <5000,5420,Various Items,08/12/2014,394463,572.95,NET,Dell Computers Corporation Ltd,55920C
Gloucester City Council,23UE,Business Transformation & Tech,RT700,Computer Software Maintenance,5427,Advanced Cache Management,08/12/2014,392848,790.51,NET,Northgate Information Solutions Uk Ltd,08982S
Gloucester City Council,23UE,Cemeteries,HC300,Maint Of Grounds - General,3030,Memorial Work,08/12/2014,394803,180,NET,Cleeveley Memorials,15055E
Gloucester City Council,23UE,Cemeteries,HC300,Maint Of Grounds - General,3030,plywood,08/12/2014,394965,199.9,NET,Millington & Ramstedt Ltd,29815S
Gloucester City Council,23UE,Cemeteries,HC300,Routine R And M - Vehicles,4011,spark plug caps,08/12/2014,394726,25.74,NET,Garden Machinery Gloucester,55641K
Gloucester City Council,23UE,City Museum Catering,LM202,Catering Provisions -Food,5110,milk,08/12/2014,394832,4.96,NET,Total Produce Gloucester,12645E
Gloucester City Council,23UE,City Museum Catering,LM202,Catering Provisions -Food,5110,milk,08/12/2014,394833,4.96,NET,Total Produce Gloucester,12645E
Gloucester City Council,23UE,Civica Contract Revs & Bens,RT250,Contracted Services,6970,JAN2015 Revenues & Benefits service,08/12/2014,394761,138572.7,NET,Civica Uk Ltd,10841X
Gloucester City Council,23UE,Civic Admin And Hospitality,RC210,Other Minor Supplies Services,5590,REPAIR,08/12/2014,394531,150,NET,The Goldman Ltd,04699D
Gloucester City Council,23UE,Civica It Contract,RT270,Contracted Services,6970,JAN15 IT Managed Services,08/12/2014,394760,47916.66,NET,Civica Uk Ltd,10841X
Gloucester City Council,23UE,Crematorium,HC200,Memorial Plaques,5053,granite tree plaque,08/12/2014,394804,136,NET,Steel & Stone (York),57204U
Gloucester City Council,23UE,Daniels Brook S106,LY120,Contract Payments,0020,Oak Carvings,08/12/2014,394756,3600,CAP,Wild Wood Carving,13438C
Gloucester City Council,23UE,Director Serv & Neighbourhoods,ME104,Conference/Meeting Expenses,5510,PREPARING FOR ELECTIONS CONFERENCE,08/12/2014,394427,350,NET,Capita Business Services Limited*,54095C
Gloucester City Council,23UE,Docks Complex - Catering Servs,RB110,Catering Provisions -Food,5110,cakes,08/12/2014,394800,28.76,NET,Taynton Farm Foods,09653F
Gloucester City Council,23UE,Docks Complex - Services,RB100,Operational Equipment <5000,5012,7 yard ship hire,08/12/2014,394720,220,NET,Archer Recycling,11021G
Gloucester City Council,23UE,Docks Complex - Telephones,RB120,Mobile Phones,5409,Samsung Galaxy Ace 4,08/12/2014,393932,119.99,NET,Everything Everywhere Ltd (T-Mobile),02334V
Gloucester City Council,23UE,Economic Development,FP300,Other Minor Supplies Services,5590,Enterprising Women Conference sponsor,08/12/2014,394727,750,NET,Gloucestershire Enterprise Ltd,18643A
Gloucester City Council,23UE,Electrical Investigatory Works,RY142,Contract Payments,0020,Technical Services,08/12/2014,393962,861,CAP,Mss Group,14469F
Gloucester City Council,23UE,Financial Services,RT200,Vocational Training,2970,1 x delegate,08/12/2014,394768,150,NET,Lg Futures,11251S
Gloucester City Council,23UE,Folk Museum,LM210,Events,5952,Apple Day cider apples & equipment,08/12/2014,394810,140,NET,REDACTED,REDACTED
Gloucester City Council,23UE,Gloucester Guildhall,LA100,Cleaning Materials,3600,Bowcare foaming soap,08/12/2014,394754,110.4,NET,Gpp Hygiene,06080P
Gloucester City Council,23UE,Gloucester Guildhall,LA100,Maintenance Of Equipment,5030,Gooseneck mic with base,08/12/2014,394783,70.4,NET,Studiospares Ltd,59773B
Gloucester City Council,23UE,Gloucester Guildhall,LA100,Maintenance Of Equipment,5030,Gooseneck mic with base,08/12/2014,394784,70.4,NET,Studiospares Ltd,59773B
Gloucester City Council,23UE,Guildhall Bar And Caf�,LA210,Basic Pay - Duty Assistants,1511,coffee,08/12/2014,394795,323.7,NET,Ethical Addictions Ltd,11654N
Gloucester City Council,23UE,Guildhall Bar And Caf�,LA210,Catering Provisions -Food,5110,milk,08/12/2014,394826,4.96,NET,Total Produce Gloucester,12645E
Gloucester City Council,23UE,Guildhall Bar And Caf�,LA210,Catering Provisions -Food,5110,milk,08/12/2014,394827,4.96,NET,Total Produce Gloucester,12645E
Gloucester City Council,23UE,Guildhall Bar And Caf�,LA210,Catering Provisions -Food,5110,milk,08/12/2014,394828,4.96,NET,Total Produce Gloucester,12645E
Gloucester City Council,23UE,Guildhall Bar And Caf�,LA210,Catering Provisions -Food,5110,milk,08/12/2014,394829,4.96,NET,Total Produce Gloucester,12645E
Gloucester City Council,23UE,Guildhall Bar And Caf�,LA210,Catering Provisions -Food,5110,milk,08/12/2014,394830,4.96,NET,Total Produce Gloucester,12645E
Gloucester City Council,23UE,Guildhall Bar And Caf�,LA210,Catering Provisions -Food,5110,milk,08/12/2014,394831,4.96,NET,Total Produce Gloucester,12645E
Gloucester City Council,23UE,Guildhall Bar And Caf�,LA210,Catering Provisions -Food,5110,Milk,08/12/2014,394824,4.96,NET,Total Produce Gloucester,12645E
Gloucester City Council,23UE,Guildhall Bar And Caf�,LA210,Catering Provisions -Food,5110,Milk,08/12/2014,394825,4.96,NET,Total Produce Gloucester,12645E
Gloucester City Council,23UE,Guildhall Bar And Caf�,LA210,Catering Provisions -Liquor,5111,drinks for resale,08/12/2014,394811,1780.42,NET,Cellar Supplies Cheltenham Ltd,01563L
Gloucester City Council,23UE,Guildhall Bar And Caf�,LA210,Catering Provisions -Liquor,5111,Gloucester Gold,08/12/2014,394796,114,NET,Gloucester Brewery,13373F
Gloucester City Council,23UE,REDACTED,REDACTED,REDACTED,REDACTED,REDACTED,08/12/2014,REDACTED,100,NET,REDACTED,REDACTED
Gloucester City Council,23UE,REDACTED,REDACTED,REDACTED,REDACTED,REDACTED,08/12/2014,REDACTED,150,NET,REDACTED,REDACTED
Gloucester City Council,23UE,REDACTED,REDACTED,REDACTED,REDACTED,REDACTED,08/12/2014,REDACTED,100,NET,REDACTED,REDACTED
Gloucester City Council,23UE,REDACTED,REDACTED,REDACTED,REDACTED,REDACTED,08/12/2014,REDACTED,100.13,NET,REDACTED,REDACTED
Gloucester City Council,23UE,REDACTED,REDACTED,REDACTED,REDACTED,REDACTED,08/12/2014,REDACTED,100,NET,REDACTED,REDACTED
Gloucester City Council,23UE,REDACTED,REDACTED,REDACTED,REDACTED,REDACTED,08/12/2014,REDACTED,255.25,NET,REDACTED,REDACTED
Gloucester City Council,23UE,REDACTED,REDACTED,REDACTED,REDACTED,REDACTED,08/12/2014,REDACTED,80,NET,REDACTED,REDACTED
Gloucester City Council,23UE,REDACTED,REDACTED,REDACTED,REDACTED,REDACTED,08/12/2014,REDACTED,665.01,NET,REDACTED,REDACTED
Gloucester City Council,23UE,REDACTED,REDACTED,REDACTED,REDACTED,REDACTED,08/12/2014,REDACTED,127.5,NET,REDACTED,REDACTED
Gloucester City Council,23UE,REDACTED,REDACTED,REDACTED,REDACTED,REDACTED,08/12/2014,REDACTED,100,NET,REDACTED,REDACTED
Gloucester City Council,23UE,Human Resources,EH100,Fees For Services Received,5350,OH Services OCT14,08/12/2014,394774,209.17,NET,Industrial Medical & Safety Services Ltd,10668L
Gloucester City Council,23UE,Kings Quarter,RY146,Contract Payments,0020,professional services,08/12/2014,394799,4500,CAP,Gva Grimley,56359W
Gloucester City Council,23UE,Northwarehouse,RB150,Repair/Maint Of Fixed Plant,3006,Investigate rads,08/12/2014,394817,65,NET,Axiom Building Services,14908A
Gloucester City Council,23UE,Safer Stronger Communities,FP841,Other Minor Supplies Services,5590,Safer Gloucester website,08/12/2014,394797,225,NET,Icon.Net,52505Z
Gloucester City Council,23UE,Senior Management Restructurin,RO200,Pension Contribs Incl Backf,2901,Pension Scheme,08/12/2014,394813,26386.26,NET,Gloucestershire County Council,10614L
Gloucester City Council,23UE,REDACTED,REDACTED,REDACTED,REDACTED,REDACTED,08/12/2014,REDACTED,65,NET,REDACTED,REDACTED
Gloucester City Council,23UE,Tic Trading,LT110,Materials For Sale,5080,Sales of Cards,08/12/2014,394820,881,NET,REDACTED,REDACTED
Gloucester City Council,23UE,Tic Trading,LT110,Sale Of Goods And Services,9230,Sales of Cards,08/12/2014,394820,-73.42,NET,REDACTED,REDACTED
Gloucester City Council,23UE,Treasury Management,VR110,Brokerage Fees,5951,FEES NOV 2014,08/12/2014,394913,3034.25,NET,Martin Brokers (Uk) Plc,51416J
Gloucester City Council,23UE,Blackfriars,LA609,Hire Ofaccomodation,3700,Immersion Room 6/12/14,09/12/2014,394974,150,NET,Global Language Immersion Centre,14537P
Gloucester City Council,23UE,Building Control,PT400,Basic Pay - Temporary Staff,2751,Temporary staff w/e w/e 23/11,09/12/2014,394801,1541.31,NET,The Oyster Partnership Limited,14900T
Gloucester City Council,23UE,Business Transformation & Tech,RT700,Computer Hardware <5000,5420,Charges Quarter 2,09/12/2014,392168,3860.52,NET,Vodafone Ltd,11843H
Gloucester City Council,23UE,Business Transformation & Tech,RT700,Computer Software Maintenance,5427,Installation of Public Access Module,09/12/2014,391480,1000,NET,Northgate Information Solutions Uk Ltd,08982S
Gloucester City Council,23UE,Client Revs & Bens Contract,RT240,Bailiffs Fees,5368,VAT due on statutory fees,09/12/2014,394781,25,NET,Bristow & Sutor,05450M
Gloucester City Council,23UE,Client Revs & Bens Contract,RT240,Bailiffs Fees,5368,VAT due on statutory fees,09/12/2014,394782,441.04,NET,Bristow & Sutor,05450M
Gloucester City Council,23UE,Client Revs & Bens Contract,RT240,Bailiffs Fees,5368,VAT on fees collected,09/12/2014,394780,0,NET,Phoenix Commercial Collections Ltd,13435J
Gloucester City Council,23UE,Contact Centre,RB300,Basic Pay -Admin /Prof Staff,2601,Temporary staff  w/e 23/11/14,09/12/2014,394732,495,NET,Morgan Hunt Uk Ltd,04451S
Gloucester City Council,23UE,Docks Complex - Services,RB100,Operational Equipment <5000,5012,Call out Charge 06/11/2014,09/12/2014,394802,96,NET,Rotowash Ltd,38240S
Gloucester City Council,23UE,Docks Complex - Services,RB100,Operational Equipment <5000,5012,Mixed Waste 27/11/2014,09/12/2014,394721,220,NET,Archer Recycling,11021G
Gloucester City Council,23UE,Docks Complex - Telephones,RB120,Mobile Phones,5409,Monthly Plan Charges October 2014,09/12/2014,392945,46.3,NET,Everything Everywhere Ltd (T-Mobile),02334V
Gloucester City Council,23UE,Docks Complex - Telephones,RB120,Telephones And Fax,5410,Charges 14/15,09/12/2014,391034,150,NET,Virgin Media Business,01869B
Gloucester City Council,23UE,Docks Complex - Telephones,RB120,Telephones And Fax,5410,Charges Oct- Nov 2014,09/12/2014,392946,355.46,NET,Virgin Media Business,01869B
Gloucester City Council,23UE,Docks Complex - Telephones,RB120,Telephones And Fax,5410,Phone Calls 15/07 - 14/08 2014,09/12/2014,390008,236.52,NET,Virgin Media Business,01869B
Gloucester City Council,23UE,Docks Complex - Telephones,RB120,Telephones And Fax,5410,Phone Charges Jul-Aug 14,09/12/2014,388155,239.72,NET,Virgin Media Business,01869B
Gloucester City Council,23UE,Economic Development,FP300,Other Minor Supplies Services,5590,Fill Page Colour,09/12/2014,394454,480,NET,Commercial Property Monthly,13485T
Gloucester City Council,23UE,Environmental Planning,LM340,Operational Materials,5070,Green Farm Orchard Mgmt plan,09/12/2014,394748,475,NET,Gloucestershire Wildlife Trust,49628F
Gloucester City Council,23UE,Guildhall Bar And Caf�,LA210,Hire Of Equipment,5020,Staff Poloshirts,09/12/2014,394805,35,NET,Quality Embroidery & Printing,06518T
Gloucester City Council,23UE,REDACTED,REDACTED,REDACTED,REDACTED,REDACTED,09/12/2014,REDACTED,355,NET,REDACTED,REDACTED
Gloucester City Council,23UE,REDACTED,REDACTED,REDACTED,REDACTED,REDACTED,09/12/2014,REDACTED,120,NET,REDACTED,REDACTED
Gloucester City Council,23UE,Hackney Carriages,HL100,Advertising And Publicity,5702,adverts 25/11/14,09/12/2014,394729,204.51,NET,Local World Ltd,08556P
Gloucester City Council,23UE,Hempsted Market/Car Boot,HM234,Sewerage And Environ Charges,3402,Hempsted Meadows Car Boot,09/12/2014,395054,408,NET,Abbey Loos Limited,10787B
Gloucester City Council,23UE,Homelessness Prevention,CH122,Grants To Voluntary Orgs-Rents,7100,Provision,09/12/2014,394967,3500,NET,Gloucestershire Nightstop,56573S
Gloucester City Council,23UE,Internal Health & Safety,EH110,Other Minor Supplies Services,5590,Conference delegate,09/12/2014,394776,330,NET,Local Authority Event Organisers Group,13496M
Gloucester City Council,23UE,Postal Services,RS120,Postages,5400,Post 07/11 - 20/11 2014,09/12/2014,394818,1648.76,NET,Royal Mail S.Wales & South West,35830S
Gloucester City Council,23UE,Postal Services,RS120,Postages,5400,"Response Plus Service, Nov 2014",09/12/2014,394812,85.74,NET,Royal Mail S.Wales & South West,35830S
Gloucester City Council,23UE,Printing,RP103,Printing,5300,Printing October 2014,09/12/2014,393691,702,NET,Alpha Colour Printers Ltd,00945B
Gloucester City Council,23UE,Printing,RP103,Printing,5300,Print Sales October 2014,09/12/2014,393680,2308.92,NET,Alpha Colour Printers Ltd,00945B
Gloucester City Council,23UE,Retail Market - Landlord,HM300,Trade Refuse Collection,3630,Food Waste November 2014,09/12/2014,394786,120,NET,B & S Pointon Ltd,06253G
Gloucester City Council,23UE,Safer Stronger Communities,FP841,Other Minor Supplies Services,5590,Night Security Light & gloves,09/12/2014,394762,1500,NET,Solon Security Ltd,02010B
Gloucester City Council,23UE,Stroud Shared Audit Services,RT301,Other Minor Supplies Services,5590,Practical Guidance book,09/12/2014,394814,100,NET,Cipfa Business Limited,09260F
Gloucester City Council,23UE,Swrda Asset Transfer,RY184,Capital General Repairs & Main,0013,Barbican Car park signs,09/12/2014,394722,346.5,CAP,Hanman Split Ltd,56889J
Gloucester City Council,23UE,Utilities,PT502,Electricity Supply,3110,UTILITIES TO DEC 2014,09/12/2014,395033,2418.67,NET,West Mercia Energy,11669Z
Gloucester City Council,23UE,Utilities,PT502,Gas Supply,3100,UTILITIES TO DEC 2014,09/12/2014,395033,461.42,NET,West Mercia Energy,11669Z
Gloucester City Council,23UE,Vehicles,RS140,Fuel,4012,Fuel,09/12/2014,394816,225.23,NET,Allstar Business Solutions Ltd (Arval),06594A
Gloucester City Council,23UE,Blackfriars,LA609,Hire Of Equipment,5020,PLATES,10/12/2014,395180,14.5,NET,Gloucester Event Hire,56935D
Gloucester City Council,23UE,Business Transformation & Tech,RT700,Computer Hardware <5000,5420,PHONE,10/12/2014,395030,119,NET,Everything Everywhere Ltd (T-Mobile),02334V
Gloucester City Council,23UE,Celebratory Lights,LT302,Christmas Lights,5024,college street,10/12/2014,394964,250,NET,Mpl Wrought Iron Llp,03907P
Gloucester City Council,23UE,Cemeteries,HC300,Clothing,5200,Hi viz jackets,10/12/2014,394775,218.87,NET,Safpro Industrial Supply Co,39190W
Gloucester City Council,23UE,Cemeteries,HC300,Purch Vehicles/M. Plant <5000,4000,"Files, Tongs, Gloves",10/12/2014,389680,100.45,NET,Spaldings,48759Y
Gloucester City Council,23UE,Cemeteries,HC300,Purch Vehicles/M. Plant <5000,4000,goods,10/12/2014,394888,32.67,NET,Spaldings,48759Y
Gloucester City Council,23UE,Cemeteries,HC300,Trade Refuse Tipping Fees,6297,DUMPER HIRE,10/12/2014,395050,380,NET,Allstone Sand & Gravel Aggregates Ltd,00940M
Gloucester City Council,23UE,Cemeteries,HC300,Trade Refuse Tipping Fees,6297,WASTE,10/12/2014,395034,1145,NET,Allstone Sand & Gravel Aggregates Ltd,00940M
Gloucester City Council,23UE,City Museum And Art Gallery,LM200,Publications For Sale,5064,GOODS FOR RESALE,10/12/2014,394757,119.22,NET,Tobar Group Trading Ltd,44165A
Gloucester City Council,23UE,City Museum And Art Gallery,LM200,Publications For Sale,5064,GOODS FOR RESALE,10/12/2014,394758,45.12,NET,Tobar Group Trading Ltd,44165A
Gloucester City Council,23UE,City Museum And Art Gallery,LM200,Publications For Sale,5064,GOODS FOR RESALE,10/12/2014,394759,36,NET,Tobar Group Trading Ltd,44165A
Gloucester City Council,23UE,Client Revs & Bens Contract,RT240,Contributions,9120,BAILIFF FEES,10/12/2014,395177,310,NET,REDACTED,REDACTED
Gloucester City Council,23UE,REDACTED,REDACTED,REDACTED,REDACTED,REDACTED,10/12/2014,REDACTED,375,NET,REDACTED,REDACTED
Gloucester City Council,23UE,Council Streetcare Team,HI101,Maint Of Grounds - General,3030,TERN CLOSE/BITTERN AVE,10/12/2014,394719,156,NET,Three Counties Drain Service,44033V
Gloucester City Council,23UE,Development Management,PT200,Advertising And Publicity,5702,ADVERT 05/12/14,10/12/2014,395187,321.38,NET,Local World Ltd,08556P
Gloucester City Council,23UE,Docks Complex - Telephones,RB120,Mobile Phones,5409,PHONE,10/12/2014,395055,119,NET,Everything Everywhere Ltd (T-Mobile),02334V
Gloucester City Council,23UE,Electrical Investigatory Works,RY142,Contract Payments,0020,load test dockside railway crane,10/12/2014,394798,275,CAP,Certex Uk Ltd,52192Y
Gloucester City Council,23UE,Emergency Out Of Hours Calls,RB301,Fees For Services Received,5350,CALLS DEC 2014,10/12/2014,394766,226.69,NET,Office Response,09439K
Gloucester City Council,23UE,REDACTED,REDACTED,REDACTED,REDACTED,REDACTED,10/12/2014,REDACTED,130,NET,REDACTED,REDACTED
Gloucester City Council,23UE,Folk Museum,LM210,Publications For Sale,5064,GOODS FOR RESALE,10/12/2014,394757,399.18,NET,Tobar Group Trading Ltd,44165A
Gloucester City Council,23UE,Folk Museum,LM210,Publications For Sale,5064,GOODS FOR RESALE,10/12/2014,394758,73.76,NET,Tobar Group Trading Ltd,44165A
Gloucester City Council,23UE,Folk Museum,LM210,Publications For Sale,5064,GOODS FOR RESALE,10/12/2014,394759,66.24,NET,Tobar Group Trading Ltd,44165A
Gloucester City Council,23UE,General Drainage Works,PY241,Contract Payments,0020,Flow control chambers,10/12/2014,394844,1646,CAP,Sel Environmental Ltd,15006U
Gloucester City Council,23UE,Gloucester Guildhall,LA100,Maintenance Of Equipment,5030,PAINT,10/12/2014,395062,349.02,NET,Directa Uk Ltd,05387T
Gloucester City Council,23UE,Grants To Voluntary Sector,FG100,Abcd Grants,7100A,ROOM HIRE 28/11/14,10/12/2014,395032,39,NET,Barton & Tredworth Developments Ltd,58165T
Gloucester City Council,23UE,Green Garden Waste,HI105,Printing,5300,LABELS,10/12/2014,394545,2066,NET,Eurolabel,10252Z
Gloucester City Council,23UE,Green Transport Policy,PJ130,Electric Car Charge,4030,SMART CAR,10/12/2014,395040,287.35,NET,Daimler Fleet Management,07828N
Gloucester City Council,23UE,REDACTED,REDACTED,REDACTED,REDACTED,REDACTED,10/12/2014,REDACTED,100,NET,REDACTED,REDACTED
Gloucester City Council,23UE,Guildhall Events,LA200,Fees For Services Received,5350,BROCHURES,10/12/2014,395049,460,NET,Glide Media,58829J
Gloucester City Council,23UE,Guildhall Events,LA200,Security Services Fees,5351,SECURITY NOV 2014,10/12/2014,395182,1859.75,NET,Nsgl Ltd,12539E
Gloucester City Council,23UE,Hackney Carriages,HL100,Fees For Services Received,5350,DVLA CHECKS,10/12/2014,395199,99.25,NET,Intelligent Data Systems (Uk) Ltd,11067G
Gloucester City Council,23UE,REDACTED,REDACTED,REDACTED,REDACTED,REDACTED,10/12/2014,REDACTED,484.6,NET,REDACTED,REDACTED
Gloucester City Council,23UE,REDACTED,REDACTED,REDACTED,REDACTED,REDACTED,10/12/2014,REDACTED,500,NET,REDACTED,REDACTED
Gloucester City Council,23UE,REDACTED,REDACTED,REDACTED,REDACTED,REDACTED,10/12/2014,REDACTED,280,NET,REDACTED,REDACTED
Gloucester City Council,23UE,Homelessness Prevention,CH122,Grants To Voluntary Orgs-Rents,7100,Homeless emergency bed,10/12/2014,394765,2379,NET,P3 (People Potential Possibilities),13809N
Gloucester City Council,23UE,REDACTED,REDACTED,REDACTED,REDACTED,REDACTED,10/12/2014,REDACTED,44,NET,REDACTED,REDACTED
Gloucester City Council,23UE,Marchants,LT108,Materials For Sale,5080,SALES OCT 2014,10/12/2014,394808,2870,NET,Marchants Coaches Ltd,48151Y
Gloucester City Council,23UE,Marchants,LT108,Materials For Sale,5080,SALES SEPT 2014,10/12/2014,394807,3584,NET,Marchants Coaches Ltd,48151Y
Gloucester City Council,23UE,Nms Contract,HI102,Printing,5300,LABELS,10/12/2014,394755,4059,NET,Eurolabel,10252Z
Gloucester City Council,23UE,Play Area Refurbishment,LY071,Contract Payments,0020,playground equipment,10/12/2014,395195,20500,CAP,Proludic Ltd,03576G
Gloucester City Council,23UE,Pollution Control,HE300,Basic Pay -Admin /Prof Staff,2601,Contaminated land work SEP14,10/12/2014,394725,1610.9,NET,Bromsgrove District Council,15037G
Gloucester City Council,23UE,Retail Market - Landlord,HM300,Cleaning / Domestic Equipment,5011,DEC 2014 CLEANING,10/12/2014,395026,18.05,NET,Initial Washroom Solutions,06143R
Gloucester City Council,23UE,Retail Market - Landlord,HM300,Sewerage And Environ Charges,3402,Annual duty of care 14/15,10/12/2014,391490,69.95,NET,Phs Group Ltd,55193S
Gloucester City Council,23UE,Retail Market - Landlord,HM300,Sewerage And Environ Charges,3402,SANITARY DISPOSAL 11/14-10/15,10/12/2014,395025,611.83,NET,Phs Group Ltd,55193S
Gloucester City Council,23UE,Theatre Tokens,LT106,Materials For Sale,5080,SALES NOV 2014,10/12/2014,395072,500,NET,Society Of London Theatre,05656Z
Gloucester City Council,23UE,Theatre Tokens,LT106,Sale Of Goods And Services,9230,SALES NOV 2014,10/12/2014,395072,-25,NET,Society Of London Theatre,05656Z
Gloucester City Council,23UE,Tic Trading,LT110,Publications For Sale,5064,books for resale,10/12/2014,394723,33.3,NET,Black Dwarf Lightmoor Publications Ltd,59484M
Gloucester City Council,23UE,Tic Trading,LT110,Publications For Sale,5064,VAT ONLY DUE,10/12/2014,395176,0,NET,Gloucester Cathedral Enterprises Ltd,50228X
Gloucester City Council,23UE,Vehicles,RS140,Fuel,4012,Fuel,10/12/2014,395075,318.91,NET,Allstar Business Solutions Ltd (Arval),06594A
Gloucester City Council,23UE,Asset Management,RS300,Basic Pay - Temporary Staff,2751,NOV 2014,11/12/2014,394942,5025,NET,Ardley Associates,09369F
Gloucester City Council,23UE,Asset Management,RS300,Vocational Training,2970,TRAINING COURSE,11/12/2014,395186,375,NET,Cipfa Business Limited,09260F
Gloucester City Council,23UE,Business Transformation & Tech,RT700,Computer Consumables,5422,KEYBOARD,11/12/2014,395029,156.75,NET,Dell Computers Corporation Ltd,55920C
Gloucester City Council,23UE,Business Transformation & Tech,RT700,Computer Hardware <5000,5420,HARDWARE,11/12/2014,394957,572.95,NET,Dell Computers Corporation Ltd,55920C
Gloucester City Council,23UE,Business Transformation & Tech,RT700,Computer Hardware <5000,5420,Lattitude 15 5000,11/12/2014,394745,1718.85,NET,Dell Computers Corporation Ltd,55920C
Gloucester City Council,23UE,Business Transformation & Tech,RT700,Computer Hardware <5000,5420,Lattitude 15 5000,11/12/2014,394746,572.95,NET,Dell Computers Corporation Ltd,55920C
Gloucester City Council,23UE,Cctv Revenue Budget,FP501,Security Equipment Serv/Repair,3038,Maintenance of CCTV system,11/12/2014,394945,1726.67,NET,Quadrant Security Group Ltd,05109A
Gloucester City Council,23UE,Cemeteries,HC300,Routine R And M - Vehicles,4011,CALL OUT,11/12/2014,394941,33,NET,Garden Machinery Gloucester,55641K
Gloucester City Council,23UE,Cemeteries,HC300,Routine R And M - Vehicles,4011,CHAIN SAW,11/12/2014,394940,16.07,NET,Garden Machinery Gloucester,55641K
Gloucester City Council,23UE,Cemeteries,HC300,Routine R And M - Vehicles,4011,HANDLE,11/12/2014,394939,55.36,NET,Garden Machinery Gloucester,55641K
Gloucester City Council,23UE,Cemeteries,HC300,Routine R And M - Vehicles,4011,SERVICE,11/12/2014,394956,15,NET,Garden Machinery Gloucester,55641K
Gloucester City Council,23UE,Civic Admin And Hospitality,RC210,Hospitality,5122,STANDS,11/12/2014,394963,50.35,NET,3d Displays Ltd,57544P
Gloucester City Council,23UE,Civica It Contract,RT270,Contracted Services,6970,PENSIONS SEPT14,11/12/2014,394422,697.88,NET,Civica Uk Ltd,10841X
Gloucester City Council,23UE,Client Revs & Bens Contract,RT240,Bank Charges And Adjustments,5950,Probate Search,11/12/2014,395351,10,NET,Hm Courts & Tribunals Service,12497V
Gloucester City Council,23UE,Client Revs & Bens Contract,RT240,Fees For Services Received,5350,RTI IMPLEMENTATION,11/12/2014,395059,8800,NET,Civica Uk Ltd,10841X
Gloucester City Council,23UE,Community Safety Projects,FP500,Basic Pay - Temporary Staff,2751,temporary staff w/e 21/11/2014,11/12/2014,394815,551.15,NET,Travail Employment Ltd,49371W
Gloucester City Council,23UE,Contact Centre,RB300,Basic Pay -Admin /Prof Staff,2601,Temporary Staff w/e 30/11/2014,11/12/2014,395074,1540.77,NET,One To One Recruitment,04752H
Gloucester City Council,23UE,Corporate Expenses,RC110,Planning Direct Action,5347,CAFE CONVERSATIONS,11/12/2014,394952,2555.8,NET,Zest Business Coaching,11131D
Gloucester City Council,23UE,Countryside Unit,LP201,Clothing,5200,CLOTHING,11/12/2014,395028,39.71,NET,Countrywide Farmers*,55687J
Gloucester City Council,23UE,Countryside Unit,LP201,Livestock Foodstuff,5841,CLOTHING,11/12/2014,395028,13.99,NET,Countrywide Farmers*,55687J
Gloucester City Council,23UE,Countryside Unit,LP201,Maint Of Grounds - General,3030,PARTS,11/12/2014,394954,5.2,NET,Buxtons Ltd,05590U
Gloucester City Council,23UE,Crematorium,HC200,Cleaning Materials,3600,CLEANING GOODS,11/12/2014,394955,63.03,NET,Core Hygiene Ltd,03885P
Gloucester City Council,23UE,Docks Complex - Castlemeads Cp,RB210,Contracted Services,6970,Fixed Overhead,11/12/2014,394948,773.48,NET,Apcoa Parking (Uk) Ltd,09954M
Gloucester City Council,23UE,Docks Complex - Castlemeads Cp,RB210,Contracted Services,6970,P&D & Headcams,11/12/2014,394929,315.87,NET,Apcoa Parking (Uk) Ltd,09954M
Gloucester City Council,23UE,Docks Complex - Castlemeads Cp,RB210,Contracted Services,6970,Variable Enforcement,11/12/2014,394930,2250.57,NET,Apcoa Parking (Uk) Ltd,09954M
Gloucester City Council,23UE,Docks Complex - Castlemeads Cp,RB210,Contracted Services,6970,Vehicles,11/12/2014,394932,437.08,NET,Apcoa Parking (Uk) Ltd,09954M
Gloucester City Council,23UE,Docks Complex - Telephones,RB120,Mobile Phones,5409,Charges November 2014,11/12/2014,393963,48.97,NET,Everything Everywhere Ltd (T-Mobile),02334V
Gloucester City Council,23UE,Docks Complex - Telephones,RB120,Mobile Phones,5409,PHONE,11/12/2014,394554,119,NET,Everything Everywhere Ltd (T-Mobile),02334V
Gloucester City Council,23UE,Docks Complex - Telephones,RB120,Telephones And Fax,5410,Phone Charges Aug-Sep 2014,11/12/2014,391063,225.44,NET,Virgin Media Business,01869B
Gloucester City Council,23UE,Economic Development,FP300,Business Grant,7116,Business Rent Grant,11/12/2014,395064,500,NET,Secret Garden Nursery Ltd,15043M
Gloucester City Council,23UE,Environmental Planning,LM340,Repair/Maint Of Monuments,3004,Historic Plaque,11/12/2014,392144,503.5,NET,Leander Architectural,02831Z
Gloucester City Council,23UE,Folk Museum,LM210,Publications For Sale,5064,Various Items,11/12/2014,395328,158.4,NET,Rex International,11680M
Gloucester City Council,23UE,Gloucester Partnership,FP106,Other Minor Supplies Services,5590,BULLY BEAT,11/12/2014,394958,1000,NET,Nathan Timothy Foundation,15181E
Gloucester City Council,23UE,Grants To Voluntary Sector,FG100,Abcd Grants,7100A,MOVING COSTS,11/12/2014,394962,250,NET,Flutterbugs,15014V
Gloucester City Council,23UE,Homelessness,CH120,Basic Pay - Temporary Staff,2751,temporary staff w/e 09/11/2014,11/12/2014,394233,703,NET,Building Recruitment Company Ltd,55385E
Gloucester City Council,23UE,Homelessness,CH120,Basic Pay - Temporary Staff,2751,temporary staff w/e 16/11/2014,11/12/2014,394467,703,NET,Building Recruitment Company Ltd,55385E
Gloucester City Council,23UE,Homelessness,CH120,Basic Pay - Temporary Staff,2751,temporary staff w/e 29/10/2014,11/12/2014,395070,612.75,NET,Building Recruitment Company Ltd,55385E
Gloucester City Council,23UE,Homelessness,CH120,Board And Lodging,5515,various tenants,11/12/2014,395350,453.87,NET,James Legge Property (Ltd),07844R
Gloucester City Council,23UE,Homelessness,CH120,Board And Lodging,5515,various tenants,11/12/2014,395345,1180.16,NET,Carbrey Housing Ltd,11098G
Gloucester City Council,23UE,Homelessness,CH120,Board And Lodging,5515,various tenants,11/12/2014,395349,771.15,NET,Kalmwood Ltd,08568G
Gloucester City Council,23UE,Homelessness,CH120,Board And Lodging,5515,various tenants,11/12/2014,395346,828.47,NET,Carbrey Housing Ltd,11098G
Gloucester City Council,23UE,Homelessness,CH120,Board And Lodging,5515,various tenants,11/12/2014,395341,1989.57,NET,Dorchester House Trust,12298D
Gloucester City Council,23UE,Homelessness,CH120,Board And Lodging,5515,various tenants,11/12/2014,395343,422.74,NET,Carbrey Housing Ltd,11098G
Gloucester City Council,23UE,REDACTED,REDACTED,REDACTED,REDACTED,REDACTED,11/12/2014,REDACTED,1098.91,NET,REDACTED,REDACTED
Gloucester City Council,23UE,REDACTED,REDACTED,REDACTED,REDACTED,REDACTED,11/12/2014,REDACTED,2403.33,NET,REDACTED,REDACTED
Gloucester City Council,23UE,REDACTED,REDACTED,REDACTED,REDACTED,REDACTED,11/12/2014,REDACTED,396,NET,REDACTED,REDACTED
Gloucester City Council,23UE,REDACTED,REDACTED,REDACTED,REDACTED,REDACTED,11/12/2014,REDACTED,835.51,NET,REDACTED,REDACTED
Gloucester City Council,23UE,REDACTED,REDACTED,REDACTED,REDACTED,REDACTED,11/12/2014,REDACTED,514.62,NET,REDACTED,REDACTED
Gloucester City Council,23UE,Housing Works In Default,HD500,Clearance And Cleansing Fees,5384,16 FIELD COURT FARM HOUSE WORKS,11/12/2014,395052,760,NET,Rj Contracting (Environmental) Ltd,07429H
Gloucester City Council,23UE,Investment Property,RB500,General Repair/Maint Buildings,3000,EASTGATE MARKET,11/12/2014,394556,185,NET,Pro Door Ltd,04760C
Gloucester City Council,23UE,Off Street Car Parks,PP110,Contracted Services,6970,Other Items,11/12/2014,394931,11341.96,NET,Apcoa Parking (Uk) Ltd,09954M
Gloucester City Council,23UE,Off Street Car Parks,PP110,Contracted Services,6970,P&D & Headcams,11/12/2014,394929,1670.45,NET,Apcoa Parking (Uk) Ltd,09954M
Gloucester City Council,23UE,Off Street Car Parks,PP110,General Repair/Maint Buildings,3000,WESTGATE ST CAR PARK,11/12/2014,395188,573,NET,Roadmark Ltd,37743T
Gloucester City Council,23UE,Solace Project,FP843,Other Minor Supplies Services,5590,ASB Salary Nov 2014,11/12/2014,394769,3250,NET,Gloucester City Homes,05244T
Gloucester City Council,23UE,Stationery Services,RS150,Stationery,5302,ENVELOPES,11/12/2014,394944,519.7,NET,Premier Paper Group Ltd,09166Y
Gloucester City Council,23UE,Stationery Services,RS150,Stationery,5302,STATIONERY,11/12/2014,395061,37.18,NET,Lyreco Uk Ltd,11746G
Gloucester City Council,23UE,Targeted Historic Grants,GY008,Contract Payments,0020,Grant payment for replacement windows,11/12/2014,395356,3201.8,CAP,Gloucester Osteopaths,59864X
Gloucester City Council,23UE,Tic Trading,LT110,Publications For Sale,5064,Various Items,11/12/2014,394946,541.66,NET,David Whyman Map Sales,02653Z
Gloucester City Council,23UE,Tic Trading,LT110,Trade Refuse Sacks,5040,Trade Waste Sacks,11/12/2014,395056,1848.8,NET,Enterprise (Aol) Ltd,06695G
Gloucester City Council,23UE,Tourism Marketing,LT100,Operational Equipment <5000,5012,Locks,11/12/2014,395042,106.5,NET,Algreta Solutions Ltd T/A Catalyst,14725L
Gloucester City Council,23UE,Tourism Marketing,LT100,Operational Equipment <5000,5012,Locks,11/12/2014,395043,55.5,NET,Algreta Solutions Ltd T/A Catalyst,14725L
Gloucester City Council,23UE,Tourism Marketing,LT100,Window Cleaning,3610,Window Cleaning Oct 2014,11/12/2014,395058,42.93,NET,Interserve Fs (Uk) Limited,00442K
Gloucester City Council,23UE,Tourism Marketing,LT100,Window Cleaning,3610,"Window Cleaning, Oct 2014",11/12/2014,395057,12,NET,Interserve Fs (Uk) Limited,00442K
Gloucester City Council,23UE,REDACTED,REDACTED,REDACTED,REDACTED,REDACTED,11/12/2014,REDACTED,952,NET,REDACTED,REDACTED
Gloucester City Council,23UE,REDACTED,REDACTED,REDACTED,REDACTED,REDACTED,11/12/2014,REDACTED,50.15,NET,REDACTED,REDACTED
Gloucester City Council,23UE,REDACTED,REDACTED,REDACTED,REDACTED,REDACTED,11/12/2014,REDACTED,225.25,NET,REDACTED,REDACTED
Gloucester City Council,23UE,REDACTED,REDACTED,REDACTED,REDACTED,REDACTED,11/12/2014,REDACTED,895.05,NET,REDACTED,REDACTED
Gloucester City Council,23UE,REDACTED,REDACTED,REDACTED,REDACTED,REDACTED,11/12/2014,REDACTED,161.5,NET,REDACTED,REDACTED
Gloucester City Council,23UE,REDACTED,REDACTED,REDACTED,REDACTED,REDACTED,11/12/2014,REDACTED,153,NET,REDACTED,REDACTED
Gloucester City Council,23UE,REDACTED,REDACTED,REDACTED,REDACTED,REDACTED,11/12/2014,REDACTED,82.45,NET,REDACTED,REDACTED
Gloucester City Council,23UE,Alney Island,PY128,Contract Payments,0020,"Interim Payment 1, construction of path",12/12/2014,395438,9000,CAP,Anderson Civil Engineering Uk Ltd,09083D
Gloucester City Council,23UE,Alney Island,PY128,Contract Payments,0020,"Interim Payment 2, construction of path",12/12/2014,395439,9000,CAP,Anderson Civil Engineering Uk Ltd,09083D
Gloucester City Council,23UE,Aspire Admin Charges,LC105,Other Minor Income,9900,BAILIFF PAYMENT 28/11/14,12/12/2014,395433,34,NET,Aspire Sports & Cultural Trust,08135V
Gloucester City Council,23UE,Asset Management,RS300,Basic Pay - Temporary Staff,2751,temporary staff w/e 17/10/14,12/12/2014,395192,1258.13,NET,Hays Specialist Recruitment Ltd,55516P
Gloucester City Council,23UE,Asset Management,RS300,Basic Pay - Temporary Staff,2751,temporary staff w/e 03/10/14,12/12/2014,395190,1204.75,NET,Hays Specialist Recruitment Ltd,55516P
Gloucester City Council,23UE,Asset Management,RS300,Basic Pay - Temporary Staff,2751,temporary staff w/e 10/10/14,12/12/2014,395193,1349.63,NET,Hays Specialist Recruitment Ltd,55516P
Gloucester City Council,23UE,Asset Management,RS300,Basic Pay - Temporary Staff,2751,temporary staff w/e 24/10/14,12/12/2014,395191,1128.51,NET,Hays Specialist Recruitment Ltd,55516P
Gloucester City Council,23UE,REDACTED,REDACTED,REDACTED,REDACTED,REDACTED,12/12/2014,REDACTED,30,NET,REDACTED,REDACTED
Gloucester City Council,23UE,REDACTED,REDACTED,REDACTED,REDACTED,REDACTED,12/12/2014,REDACTED,25,NET,REDACTED,REDACTED
Gloucester City Council,23UE,REDACTED,REDACTED,REDACTED,REDACTED,REDACTED,12/12/2014,REDACTED,-3.75,NET,REDACTED,REDACTED
Gloucester City Council,23UE,REDACTED,REDACTED,REDACTED,REDACTED,REDACTED,12/12/2014,REDACTED,-3.13,NET,REDACTED,REDACTED
Gloucester City Council,23UE,Business Transformation & Tech,RT700,Computer Hardware <5000,5420,Upgrade,12/12/2014,394169,1170,NET,Capita Business Services Limited*,54095C
Gloucester City Council,23UE,Business Transformation & Tech,RT700,Computer Software Maintenance,5427,Upgrade,12/12/2014,394169,2550,NET,Capita Business Services Limited*,54095C
Gloucester City Council,23UE,Christmas Lights,GY006,Contract Payments,0020,Christmas Decorations,12/12/2014,393974,4894.87,CAP,Scs Installations Ltd,10383G
Gloucester City Council,23UE,City Museum Catering,LM202,Catering Provisions -Food,5110,COFFEE,12/12/2014,394949,84.25,NET,James Gourmet Coffee Co.,55049A
Gloucester City Council,23UE,Contact Centre,RB300,Basic Pay -Admin /Prof Staff,2601,STAFF W/E 05/12/14,12/12/2014,395197,653.95,NET,One To One Recruitment,04752H
Gloucester City Council,23UE,Contact Centre,RB300,Fees For Services Received,5350,CALLS NOV 2014,12/12/2014,395181,13.59,NET,Office Response,09439K
Gloucester City Council,23UE,Council Streetcare Team,HI101,Maint Of Grounds - General,3030,glos park,12/12/2014,394750,2259,NET,Greenfields Garden Services Ltd,48130G
Gloucester City Council,23UE,Director Serv & Neighbourhoods,ME104,Conference/Meeting Expenses,5510,CANCELLATION FEE,12/12/2014,394953,50,NET,Capita Business Services Limited*,54095C
Gloucester City Council,23UE,Gloucester Guildhall,LA100,Licences,5703,Fees for licence,12/12/2014,395071,432.53,NET,Ppl,49860Z
Gloucester City Council,23UE,Gloucester Guildhall,LA100,Maintenance Of Equipment,5030,EARPLUGS,12/12/2014,395041,36.4,NET,Directa Uk Ltd,05387T
Gloucester City Council,23UE,Grants To Voluntary Sector,FG100,Members Allocation Fund,7100F,GRANT PAYMENT,12/12/2014,395434,100,NET,Podsmead Big Local,14952X
Gloucester City Council,23UE,REDACTED,REDACTED,REDACTED,REDACTED,REDACTED,12/12/2014,REDACTED,3921.4,NET,REDACTED,REDACTED
Gloucester City Council,23UE,REDACTED,REDACTED,REDACTED,REDACTED,REDACTED,12/12/2014,REDACTED,484.6,NET,REDACTED,REDACTED
Gloucester City Council,23UE,REDACTED,REDACTED,REDACTED,REDACTED,REDACTED,12/12/2014,REDACTED,484.6,NET,REDACTED,REDACTED
Gloucester City Council,23UE,REDACTED,REDACTED,REDACTED,REDACTED,REDACTED,12/12/2014,REDACTED,67.5,NET,REDACTED,REDACTED
Gloucester City Council,23UE,REDACTED,REDACTED,REDACTED,REDACTED,REDACTED,12/12/2014,REDACTED,484.6,NET,REDACTED,REDACTED
Gloucester City Council,23UE,REDACTED,REDACTED,REDACTED,REDACTED,REDACTED,12/12/2014,REDACTED,500,NET,REDACTED,REDACTED
Gloucester City Council,23UE,REDACTED,REDACTED,REDACTED,REDACTED,REDACTED,12/12/2014,REDACTED,200,NET,REDACTED,REDACTED
Gloucester City Council,23UE,REDACTED,REDACTED,REDACTED,REDACTED,REDACTED,12/12/2014,REDACTED,800,NET,REDACTED,REDACTED
Gloucester City Council,23UE,REDACTED,REDACTED,REDACTED,REDACTED,REDACTED,12/12/2014,REDACTED,750,NET,REDACTED,REDACTED
Gloucester City Council,23UE,Parks Contract Management,LP100,Maint Of Grounds - General,3030,glos park,12/12/2014,394749,1200,NET,Greenfields Garden Services Ltd,48130G
Gloucester City Council,23UE,Retail Market - Landlord,HM300,Trade Refuse Collection,3630,SKIP HIRE,12/12/2014,395416,210,NET,D R Skip Hire,04822D
Gloucester City Council,23UE,Tic Stamp Sales,LT102,Postages,5400,STAMPS,12/12/2014,395427,309,NET,Royal Mail Retail,59246G
Gloucester City Council,23UE,Asset Management,RS300,Basic Pay - Temporary Staff,2751,temporary staff w/e 26/09/14,15/12/2014,395194,1288.63,NET,Hays Specialist Recruitment,04355S
Gloucester City Council,23UE,Bus Station,RB400,Water Supply,3400,ACCT 7890105225,15/12/2014,395189,168.61,NET,Severn Trent Water,01823H
Gloucester City Council,23UE,Cemeteries,HC300,Clothing,5200,CLOTHING,15/12/2014,395422,81.11,NET,Safpro Industrial Supply Co,39190W
Gloucester City Council,23UE,Cemeteries,HC300,Clothing,5200,Poloshirt,15/12/2014,394936,15.3,NET,Safpro Industrial Supply Co,39190W
Gloucester City Council,23UE,Cemeteries,HC300,Operational Materials,5070,Cleaning Materials,15/12/2014,394934,137.3,NET,Safpro Industrial Supply Co,39190W
Gloucester City Council,23UE,Council Streetcare Team,HI101,Water Supply,3400,ACCT 7890105225,15/12/2014,395189,103.6,NET,Severn Trent Water,01823H
Gloucester City Council,23UE,Countryside Unit,LP201,Maint Of Grounds - General,3030,SAW,15/12/2014,395415,42.88,NET,Countrywide Farmers*,55687J
Gloucester City Council,23UE,Countryside Unit,LP201,Water Supply,3400,FIELD TROUGH,15/12/2014,395073,114.9,NET,Severn Trent Water Ltd,02417P
Gloucester City Council,23UE,Crematorium,HC200,"Seeds, Trees, Plants, Shrubs",3028,standard rose,15/12/2014,394809,24.99,NET,Trioscape,15031V
Gloucester City Council,23UE,Crematorium,HC200,Water Supply,3400,ACCT 7890105225,15/12/2014,395189,821.04,NET,Severn Trent Water,01823H
Gloucester City Council,23UE,Development Management,PT200,Advertising And Publicity,5702,Advertisements 27/11/2014,15/12/2014,394730,350.59,NET,Local World Ltd,08556P
Gloucester City Council,23UE,Docks Complex - Services,RB100,Catering Provisions -Food,5110,FOOD,15/12/2014,394960,76.58,NET,Janes Pantry,24500W
Gloucester City Council,23UE,Docks Complex - Services,RB100,Recycling,3631,RECYCLING,15/12/2014,394961,370.4,NET,Printwaste Recycling,57114W
Gloucester City Council,23UE,Docks Complex - Services,RB100,Recycling,3631,RECYCLING,15/12/2014,394977,85.2,NET,Printwaste Recycling,57114W
Gloucester City Council,23UE,Electrical Investigatory Works,RY142,Contract Payments,0020,Water Contract,15/12/2014,394966,3146.25,CAP,Kingfisher Environmental Services Ltd,04738V
Gloucester City Council,23UE,REDACTED,REDACTED,REDACTED,REDACTED,REDACTED,15/12/2014,REDACTED,1228.25,NET,REDACTED,REDACTED
Gloucester City Council,23UE,Guildhall Events,LA200,Advertising And Publicity,5702,Advertisements 28/11/2014,15/12/2014,394728,412.49,NET,Local World Ltd,08556P
Gloucester City Council,23UE,Homelessness Prevention,CH122,Fees For Services Received,5350,Deposit,15/12/2014,395466,800,NET,Chawda Holdings Ltd,08904N
Gloucester City Council,23UE,Investment Property,RB500,Water Supply,3400,ACCT 7890105225,15/12/2014,395189,300.42,NET,Severn Trent Water,01823H
Gloucester City Council,23UE,Land Searches,RO300,Fees For Services Received,5350,Property Searches September 2014,15/12/2014,394773,1291.66,NET,Local Government Association,11683F
Gloucester City Council,23UE,Legal Services,RS200,Basic Pay - Temporary Staff,2751,temporary staff w/e 30/11/14,15/12/2014,394717,375,NET,Paystream My Max Limited,15049Z
Gloucester City Council,23UE,Nms Contract,HI102,Contracted Services,6970,PENSIONS OCT 2014,15/12/2014,395036,10285.81,NET,Enterprise (Aol) Ltd,06695G
Gloucester City Council,23UE,Off Street Car Parks,PP110,Water Supply,3400,ACCT 7890105225,15/12/2014,395189,1689.05,NET,Severn Trent Water,01823H
Gloucester City Council,23UE,Public Conveniences (Client),HI400,Water Supply,3400,ACCT 7890105225,15/12/2014,395189,168.61,NET,Severn Trent Water,01823H
Gloucester City Council,23UE,Shopmobility,PE200,Cleaning Materials,3600,Waste service,15/12/2014,394875,7.11,NET,Ocs Group Uk Limited T/A Cannon,06506A
Gloucester City Council,23UE,Shopmobility,PE200,Maintenance Of Equipment,5030,Various Repairs Nov 2014,15/12/2014,394771,328,NET,Disabled Care & Mobility,12675V
Gloucester City Council,23UE,Advance City Attractions,LT109,Materials For Sale,5080,Ticket Sales 'Cattle Country' 2014,16/12/2014,395563,24,NET,Cattle Country Adventure Park,58734X
Gloucester City Council,23UE,Advance City Attractions,LT109,Materials For Sale,5080,Ticket Sales Commission,16/12/2014,395559,3.75,NET,Soldiers Of Gloucestershire Museum,11068G
Gloucester City Council,23UE,Advance City Attractions,LT109,Sale Of Goods And Services,9230,Ticket Sales 'Cattle Country' 2014,16/12/2014,395563,-2,NET,Cattle Country Adventure Park,58734X
Gloucester City Council,23UE,Advance City Attractions,LT109,Sale Of Goods And Services,9230,Ticket Sales Commission,16/12/2014,395559,-0.32,NET,Soldiers Of Gloucestershire Museum,11068G
Gloucester City Council,23UE,Crematorium,HC200,Memorial Plaques,5053,PLAQUE,16/12/2014,395280,105,NET,Arkell & Hurcombe,59812T
Gloucester City Council,23UE,Crematorium,HC200,Memorial Plaques,5053,PLAQUES,16/12/2014,395281,144,NET,Arkell & Hurcombe,59812T
Gloucester City Council,23UE,Disabled Facilities Grants,CY013,Disabled Facility Grants,0074,Disabled Facilities Grant MDF5074,16/12/2014,395569,5801.42,CAP,Mears Home Improvement Ltd,00096G
Gloucester City Council,23UE,Disabled Facilities Grants,CY013,Disabled Facility Grants,0074,Disabled Facilities Grant MDF5131,16/12/2014,395568,3440,CAP,Stroud Stairlifts,10315A
Gloucester City Council,23UE,Environmental Planning,LM340,Clothing,5200,CLOTHING,16/12/2014,395426,54.2,NET,Safpro Industrial Supply Co,39190W
Gloucester City Council,23UE,REDACTED,REDACTED,REDACTED,REDACTED,REDACTED,16/12/2014,REDACTED,500,NET,REDACTED,REDACTED
Gloucester City Council,23UE,REDACTED,REDACTED,REDACTED,REDACTED,REDACTED,16/12/2014,REDACTED,280,NET,REDACTED,REDACTED
Gloucester City Council,23UE,REDACTED,REDACTED,REDACTED,REDACTED,REDACTED,16/12/2014,REDACTED,300,NET,REDACTED,REDACTED
Gloucester City Council,23UE,Guildhall Bar And Caf�,LA210,Catering Provisions -Liquor,5111,DRINKS FOR RESALE,16/12/2014,395257,1465.79,NET,Cellar Supplies Cheltenham Ltd,01563L
Gloucester City Council,23UE,Guildhall Bar And Caf�,LA210,Catering Provisions -Liquor,5111,DRINKS FOR RESALE,16/12/2014,395258,89.99,NET,Cellar Supplies Cheltenham Ltd,01563L
Gloucester City Council,23UE,Guildhall Bar And Caf�,LA210,Catering Provisions -Liquor,5111,DRINKS FOR RESALE,16/12/2014,395259,1585.02,NET,Cellar Supplies Cheltenham Ltd,01563L
Gloucester City Council,23UE,Guildhall Bar And Caf�,LA210,Catering Provisions -Liquor,5111,DRINKS FOR RESALE,16/12/2014,395260,114,NET,Gloucester Brewery,13373F
Gloucester City Council,23UE,REDACTED,REDACTED,REDACTED,REDACTED,REDACTED,16/12/2014,REDACTED,379.6,NET,REDACTED,REDACTED
Gloucester City Council,23UE,REDACTED,REDACTED,REDACTED,REDACTED,REDACTED,16/12/2014,REDACTED,120,NET,REDACTED,REDACTED
Gloucester City Council,23UE,REDACTED,REDACTED,REDACTED,REDACTED,REDACTED,16/12/2014,REDACTED,300,NET,REDACTED,REDACTED
Gloucester City Council,23UE,Homelessness,CH120,Basic Pay - Temporary Staff,2751,temporary staff w/e 23/11/14,16/12/2014,395067,674.5,NET,Building Recruitment Company Ltd,55385E
Gloucester City Council,23UE,Homelessness,CH120,Board And Lodging,5515,various tenants,16/12/2014,395567,635.16,NET,Kalmwood Ltd,08568G
Gloucester City Council,23UE,Homelessness,CH120,Fees For Services Received,5350,MEDICAL REPORT,16/12/2014,395254,20.5,NET,Saintbridge Surgery,58374F
Gloucester City Council,23UE,Homelessness,CH120,Fees For Services Received,5350,MEDICAL REPORT,16/12/2014,395255,20.5,NET,Saintbridge Surgery,58374F
Gloucester City Council,23UE,Homelessness,CH120,Removal And Storage Fees,5513,STORAGE,16/12/2014,395252,519.75,NET,Advanced Removals & Storage Ltd,57142R
Gloucester City Council,23UE,REDACTED,REDACTED,REDACTED,REDACTED,REDACTED,16/12/2014,REDACTED,364.6,NET,REDACTED,REDACTED
Gloucester City Council,23UE,Legal Services,RS200,Basic Pay - Temporary Staff,2751,temporary staff w/e 05/12/14,16/12/2014,395183,608.81,NET,Sellick Partnership Group Ltd,11057C
Gloucester City Council,23UE,Legal Services,RS200,Basic Pay - Temporary Staff,2751,temporary staff w/e 28/11/14,16/12/2014,394716,356.62,NET,Sellick Partnership Group Ltd,11057C
Gloucester City Council,23UE,Legal Services,RS200,Basic Pay - Temporary Staff,2751,temporary staff w/e 30/11/14,16/12/2014,394718,927.5,NET,Michael Page International Recruitment Ltd,06601P
Gloucester City Council,23UE,Legal Services,RS200,Basic Pay - Temporary Staff,2751,temporary staff w/e 30/11/14,16/12/2014,395419,487.29,NET,Premiere Employment Ltd,55468Z
Gloucester City Council,23UE,Legal Services,RS200,Basic Pay - Temporary Staff,2751,temporary staff w/e 23/11/14,16/12/2014,395053,398.4,NET,Premiere Employment Ltd,55468Z
Gloucester City Council,23UE,Public Conveniences (Client),HI400,Advertising And Publicity,5702,ADVERT 13 NOV 14,16/12/2014,394947,292.16,NET,Local World Ltd,08556P
Gloucester City Council,23UE,Registration Of Electors,RS400,Printing,5300,IER MAILINGS,16/12/2014,395047,345.23,NET,Alpha Response Print & Mail Ltd,03029U
Gloucester City Council,23UE,Tic Theatre Ticket Sales,LT107,Materials For Sale,5080,Ticket Sales 'Happy Jack' Nov 2014,16/12/2014,395560,319,NET,Kings Theatre,54213X
Gloucester City Council,23UE,Tic Theatre Ticket Sales,LT107,Materials For Sale,5080,Ticket Sales 'Spirit of christmas' Dec,16/12/2014,395562,130,NET,Muscular Dystrophy Campaign,11485M
Gloucester City Council,23UE,REDACTED,REDACTED,REDACTED,REDACTED,REDACTED,16/12/2014,REDACTED,234,NET,REDACTED,REDACTED
Gloucester City Council,23UE,Tic Theatre Ticket Sales,LT107,Sale Of Goods And Services,9230,Ticket Sales 'Happy Jack' Nov 2014,16/12/2014,395560,-26.58,NET,Kings Theatre,54213X
Gloucester City Council,23UE,Tic Theatre Ticket Sales,LT107,Sale Of Goods And Services,9230,Ticket Sales 'Spirit of christmas' Dec,16/12/2014,395562,-5.42,NET,Muscular Dystrophy Campaign,11485M
Gloucester City Council,23UE,REDACTED,REDACTED,REDACTED,REDACTED,REDACTED,16/12/2014,REDACTED,-19.5,NET,REDACTED,REDACTED
Gloucester City Council,23UE,Asset Management,RS300,General Repair/Maint Buildings,3000,Gloucester Park lighting repairs,17/12/2014,395134,1556.48,NET,Rf Gardiner Limited,12299B
Gloucester City Council,23UE,Asset Management,RS300,General Repair/Maint Buildings,3000,Greyfriars lighting repairs,17/12/2014,395102,105.12,NET,Rf Gardiner Limited,12299B
Gloucester City Council,23UE,Asset Management,RS300,General Repair/Maint Buildings,3000,St Lucys Garden lighting repairs,17/12/2014,395116,596.81,NET,Rf Gardiner Limited,12299B
Gloucester City Council,23UE,Asset Management,RS300,General Repair/Maint Buildings,3000,"St Oswalds Priory, repairs to lights",17/12/2014,395132,228.74,NET,Rf Gardiner Limited,12299B
Gloucester City Council,23UE,Asset Management,RS300,General Repair/Maint Buildings,3000,Tuffley Park pothole repair,17/12/2014,395128,24.63,NET,Rf Gardiner Limited,12299B
Gloucester City Council,23UE,Bus Station,RB400,General Repair/Maint Buildings,3000,"Bus Station, adjust time clocks",17/12/2014,395110,117.47,NET,Rf Gardiner Limited,12299B
Gloucester City Council,23UE,Bus Station,RB400,General Repair/Maint Buildings,3000,Bus Station electrical inspection,17/12/2014,395093,65.7,NET,Rf Gardiner Limited,12299B
Gloucester City Council,23UE,Bus Station,RB400,General Repair/Maint Buildings,3000,"Bus Station, repair lighting",17/12/2014,395096,419.86,NET,Rf Gardiner Limited,12299B
Gloucester City Council,23UE,Cemeteries,HC300,Operational Materials,5070,Crem mess room electrical works,17/12/2014,395117,2215.77,NET,Rf Gardiner Limited,12299B
Gloucester City Council,23UE,City Museum And Art Gallery,LM200,Operational Equipment <5000,5012,Balloon Sticks,17/12/2014,395289,53,NET,Banners & Balloons,58000D
Gloucester City Council,23UE,City Museum Catering,LM202,Catering Provisions -Food,5110,Food,17/12/2014,395317,90.95,NET,Woodward Foodservice,10714F
Gloucester City Council,23UE,City Museum Catering,LM202,Catering Provisions -Food,5110,Milk,17/12/2014,395318,4.96,NET,Total Produce Gloucester,12645E
Gloucester City Council,23UE,City Museum Catering,LM202,Catering Provisions -Food,5110,Milk,17/12/2014,395319,4.96,NET,Total Produce Gloucester,12645E
Gloucester City Council,23UE,City Museum Catering,LM202,Catering Provisions -Food,5110,Milk,17/12/2014,395320,4.96,NET,Total Produce Gloucester,12645E
Gloucester City Council,23UE,City Museum Catering,LM202,Catering Provisions -Food,5110,Milk,17/12/2014,395321,4.96,NET,Total Produce Gloucester,12645E
Gloucester City Council,23UE,Civic Admin And Hospitality,RC210,Hospitality,5122,"North Warehouse, install lighting",17/12/2014,395104,472,NET,Rf Gardiner Limited,12299B
Gloucester City Council,23UE,Client Revs & Bens Contract,RT240,Bailiffs Fees,5368,vat due on statutory fees,17/12/2014,394976,26.66,NET,Bristow & Sutor,05450M
Gloucester City Council,23UE,Client Revs & Bens Contract,RT240,Bailiffs Fees,5368,vat on statuory fees,17/12/2014,395539,502.55,NET,Bristow & Sutor,05450M
Gloucester City Council,23UE,Contact Centre,RB300,Basic Pay -Admin /Prof Staff,2601,STAFF W/E 17/10/14,17/12/2014,395421,401.94,NET,One To One Recruitment,04752H
Gloucester City Council,23UE,Corporate Reporting /Financing,RC504,Fees For Services Received,5350,Childcare Vouchers,17/12/2014,395068,27.75,NET,Wider Plan Ltd ( Formerly Kiddivouchers),07893B
Gloucester City Council,23UE,Council Streetcare Team,HI101,Maint Of Grounds - General,3030,Gloucester Park Entrance,17/12/2014,394751,751,NET,Greenfields Garden Services Ltd,48130G
Gloucester City Council,23UE,Council Streetcare Team,HI101,Operational Equipment <5000,5012,Cable ties & tape,17/12/2014,395608,18.6,NET,Ermin Plant Hire & Services Ltd,14150V
Gloucester City Council,23UE,Docks Complex - Castlemeads Cp,RB210,General Repair/Maint Buildings,3000,"Castlemeads Car Park, time clocks",17/12/2014,395111,52.56,NET,Rf Gardiner Limited,12299B
Gloucester City Council,23UE,Docks Complex - Castlemeads Cp,RB210,Maint Of Grounds - General,3030,"Castlemeads Car park, repair lights",17/12/2014,395098,186.52,NET,Rf Gardiner Limited,12299B
Gloucester City Council,23UE,Docks Complex - Services,RB100,General Repair/Maint Buildings,3000,Herbert warehouse gents toilet repair,17/12/2014,395131,183.18,NET,Rf Gardiner Limited,12299B
Gloucester City Council,23UE,Docks Complex - Services,RB100,General Repair/Maint Buildings,3000,"Herbert Warehouse, various lamps",17/12/2014,395109,357.4,NET,Rf Gardiner Limited,12299B
Gloucester City Council,23UE,Dwelling Acquisitions,BY006,Contract Payments,0020,DEC 2014,17/12/2014,394950,772701,CAP,Gloucester City Homes,05244T
Gloucester City Council,23UE,General Drainage Works,PY241,Contract Payments,0020,"Three Gables, remove wall vents",17/12/2014,394772,950,CAP,Mr M G Horton T/A H&T Property Maintenance,09210X
Gloucester City Council,23UE,General Works Fund,RY203,Capital General Repairs & Main,0013,Bearlands Lodge works,17/12/2014,395082,1326.2,CAP,Rf Gardiner Limited,12299B
Gloucester City Council,23UE,General Works Fund,RY203,Contract Payments,0020,Crem electric heater repair,17/12/2014,395121,52.56,CAP,Rf Gardiner Limited,12299B
Gloucester City Council,23UE,Gloscat S106,LY073,Contract Payments,0020,Gloucester Park Play Area,17/12/2014,394752,1089,CAP,Greenfields Garden Services Ltd,48130G
Gloucester City Council,23UE,Group Mgr Cult Ser & Tourism,GR102,Consultants Fees,5349,Project Team Costs 9 days,17/12/2014,395290,8662.5,NET,Michael & Partners Limited,15101Z
Gloucester City Council,23UE,Guildhall Bar And Caf�,LA210,Catering Provisions -Food,5110,Milk,17/12/2014,395311,4.96,NET,Total Produce Gloucester,12645E
Gloucester City Council,23UE,Guildhall Bar And Caf�,LA210,Catering Provisions -Food,5110,Milk,17/12/2014,395312,4.96,NET,Total Produce Gloucester,12645E
Gloucester City Council,23UE,Guildhall Bar And Caf�,LA210,Catering Provisions -Food,5110,Milk,17/12/2014,395313,4.96,NET,Total Produce Gloucester,12645E
Gloucester City Council,23UE,Guildhall Bar And Caf�,LA210,Catering Provisions -Food,5110,Milk,17/12/2014,395314,4.96,NET,Total Produce Gloucester,12645E
Gloucester City Council,23UE,Guildhall Bar And Caf�,LA210,Catering Provisions -Food,5110,Milk,17/12/2014,395315,4.96,NET,Total Produce Gloucester,12645E
Gloucester City Council,23UE,Guildhall Bar And Caf�,LA210,Catering Provisions -Food,5110,Milk,17/12/2014,395316,4.96,NET,Total Produce Gloucester,12645E
Gloucester City Council,23UE,REDACTED,REDACTED,REDACTED,REDACTED,REDACTED,17/12/2014,REDACTED,5059,NET,REDACTED,REDACTED
Gloucester City Council,23UE,Homelessness Prevention,CH122,Fees For Services Received,5350,Deposit,17/12/2014,395612,349.5,NET,Orritt & Turner Properties,67065RV
Gloucester City Council,23UE,Housing Strategy & Enabling,CH110,Conference/Meeting Expenses,5510,The Care Act,17/12/2014,395044,240,NET,Chartered Institute Of Housing,24230C
Gloucester City Council,23UE,Housing Strategy & Enabling,CH110,Vocational Training,2970,Planning For Housing,17/12/2014,395051,280,NET,Chartered Institute Of Housing,24230C
Gloucester City Council,23UE,Investment Property,RB500,General Repair/Maint Buildings,3000,106 Westgate St works,17/12/2014,395094,19.08,NET,Rf Gardiner Limited,12299B
Gloucester City Council,23UE,Investment Property,RB500,General Repair/Maint Buildings,3000,Bus Station hand wash electrics,17/12/2014,395076,52.56,NET,Rf Gardiner Limited,12299B
Gloucester City Council,23UE,Investment Property,RB500,General Repair/Maint Buildings,3000,City Museum display cabinet lights,17/12/2014,395090,145.11,NET,Rf Gardiner Limited,12299B
Gloucester City Council,23UE,Investment Property,RB500,General Repair/Maint Buildings,3000,City museum gents toilet lights repair,17/12/2014,395077,100.88,NET,Rf Gardiner Limited,12299B
Gloucester City Council,23UE,Investment Property,RB500,General Repair/Maint Buildings,3000,City Museum grease trap repairs,17/12/2014,395084,16.42,NET,Rf Gardiner Limited,12299B
Gloucester City Council,23UE,Investment Property,RB500,General Repair/Maint Buildings,3000,City Museum Lincat boiler inspection,17/12/2014,395092,19.08,NET,Rf Gardiner Limited,12299B
Gloucester City Council,23UE,Investment Property,RB500,General Repair/Maint Buildings,3000,City Museum outlet pipe works,17/12/2014,395127,19.08,NET,Rf Gardiner Limited,12299B
Gloucester City Council,23UE,Investment Property,RB500,General Repair/Maint Buildings,3000,Crem replace faulty RCD,17/12/2014,395083,181.73,NET,Rf Gardiner Limited,12299B
Gloucester City Council,23UE,Investment Property,RB500,General Repair/Maint Buildings,3000,Crem reseal skylight,17/12/2014,395086,24.63,NET,Rf Gardiner Limited,12299B
Gloucester City Council,23UE,Investment Property,RB500,General Repair/Maint Buildings,3000,Crem toilet repairs,17/12/2014,395085,24.87,NET,Rf Gardiner Limited,12299B
Gloucester City Council,23UE,Investment Property,RB500,General Repair/Maint Buildings,3000,Eastgate Market compactor electrics,17/12/2014,395113,65.7,NET,Rf Gardiner Limited,12299B
Gloucester City Council,23UE,Investment Property,RB500,General Repair/Maint Buildings,3000,"Eastgate Market, replace light",17/12/2014,395107,168.33,NET,Rf Gardiner Limited,12299B
Gloucester City Council,23UE,Investment Property,RB500,General Repair/Maint Buildings,3000,Eastgate Market sink repair,17/12/2014,395124,19.08,NET,Rf Gardiner Limited,12299B
Gloucester City Council,23UE,Investment Property,RB500,General Repair/Maint Buildings,3000,Folk Museum earth bonding for gas supply,17/12/2014,395129,177.56,NET,Rf Gardiner Limited,12299B
Gloucester City Council,23UE,Investment Property,RB500,General Repair/Maint Buildings,3000,Guildhall toilet repairs,17/12/2014,395120,19.08,NET,Rf Gardiner Limited,12299B
Gloucester City Council,23UE,Investment Property,RB500,General Repair/Maint Buildings,3000,"Herbert Warehouse, lighting fault",17/12/2014,395105,65.7,NET,Rf Gardiner Limited,12299B
Gloucester City Council,23UE,Investment Property,RB500,General Repair/Maint Buildings,3000,Herbert Warehouse lighting repair,17/12/2014,395125,439.28,NET,Rf Gardiner Limited,12299B
Gloucester City Council,23UE,Investment Property,RB500,General Repair/Maint Buildings,3000,"Herbert Warehouse, replace PIR sensors",17/12/2014,395106,184.78,NET,Rf Gardiner Limited,12299B
Gloucester City Council,23UE,Investment Property,RB500,General Repair/Maint Buildings,3000,repair lights at Bishop Hooper monument,17/12/2014,395078,62.9,NET,Rf Gardiner Limited,12299B
Gloucester City Council,23UE,Investment Property,RB500,General Repair/Maint Buildings,3000,"St Michaels Tower, clean inside tower",17/12/2014,395135,82.1,NET,Rf Gardiner Limited,12299B
Gloucester City Council,23UE,Investment Property,RB500,General Repair/Maint Buildings,3000,"TIC, fix nosings to stairs",17/12/2014,395103,16.42,NET,Rf Gardiner Limited,12299B
Gloucester City Council,23UE,Investment Property,RB500,General Repair/Maint Buildings,3000,"Westgate St Car Park, fix lights",17/12/2014,395610,68.67,NET,Rf Gardiner Limited,12299B
Gloucester City Council,23UE,Kings Quarter Redevelopment,RB600,Fees For Services Received,5350,"Interim Account,",17/12/2014,395299,2664,NET,Geldards Llp,08628P
Gloucester City Council,23UE,Kings Sq Paving Emerg Works,RY161,Contract Payments,0020,Kings Square pavement repairs,17/12/2014,395087,229.15,CAP,Rf Gardiner Limited,12299B
Gloucester City Council,23UE,Kings Sq Paving Emerg Works,RY161,Contract Payments,0020,"Kings Square, repairs to lighting",17/12/2014,395097,365.55,CAP,Rf Gardiner Limited,12299B
Gloucester City Council,23UE,Kings Sq Paving Emerg Works,RY161,Contract Payments,0020,Kings Square slab relaying,17/12/2014,395080,29.2,CAP,Rf Gardiner Limited,12299B
Gloucester City Council,23UE,Legal Services,RS200,Basic Pay - Temporary Staff,2751,temporary staff w/e 06/10/14,17/12/2014,395179,550,NET,Paystream My Max Limited,15049Z
Gloucester City Council,23UE,REDACTED,REDACTED,REDACTED,REDACTED,REDACTED,17/12/2014,REDACTED,296,NET,REDACTED,REDACTED
Gloucester City Council,23UE,Nms Contract,HI102,Contracted Services,6970,DEC 2014,17/12/2014,395035,490613.67,NET,Enterprise (Aol) Ltd,06695G
Gloucester City Council,23UE,Northwarehouse,RB150,General Repair/Maint Buildings,3000,N Warehouse lighting repairs,17/12/2014,395100,194.29,NET,Rf Gardiner Limited,12299B
Gloucester City Council,23UE,Northwarehouse,RB150,General Repair/Maint Buildings,3000,N Warehouse install check metering,17/12/2014,395126,545,NET,Rf Gardiner Limited,12299B
Gloucester City Council,23UE,Off Street Car Parks,PP110,General Repair/Maint Buildings,3000,Eastgate Car park lighting repair,17/12/2014,395133,583.13,NET,Rf Gardiner Limited,12299B
Gloucester City Council,23UE,Off Street Car Parks,PP110,General Repair/Maint Buildings,3000,Gt Western Rd car park repairs,17/12/2014,395123,163.61,NET,Rf Gardiner Limited,12299B
Gloucester City Council,23UE,Off Street Car Parks,PP110,General Repair/Maint Buildings,3000,Hampden Way car park lights,17/12/2014,395095,4741,NET,Rf Gardiner Limited,12299B
Gloucester City Council,23UE,Off Street Car Parks,PP110,General Repair/Maint Buildings,3000,Hare Lane South lighting repairs,17/12/2014,395099,493.64,NET,Rf Gardiner Limited,12299B
Gloucester City Council,23UE,Off Street Car Parks,PP110,General Repair/Maint Buildings,3000,Kings Walk Car Park gully unblocking,17/12/2014,395118,24.63,NET,Rf Gardiner Limited,12299B
Gloucester City Council,23UE,Off Street Car Parks,PP110,General Repair/Maint Buildings,3000,"Longsmith St Car park, faulty heater",17/12/2014,395108,169.06,NET,Rf Gardiner Limited,12299B
Gloucester City Council,23UE,Off Street Car Parks,PP110,General Repair/Maint Buildings,3000,Longsmith St car park gully works,17/12/2014,395079,16.42,NET,Rf Gardiner Limited,12299B
Gloucester City Council,23UE,Off Street Car Parks,PP110,General Repair/Maint Buildings,3000,Longsmith St car park lighting repairs,17/12/2014,395101,52.56,NET,Rf Gardiner Limited,12299B
Gloucester City Council,23UE,Off Street Car Parks,PP110,General Repair/Maint Buildings,3000,Longsmith St car park pothole repair,17/12/2014,395091,32.84,NET,Rf Gardiner Limited,12299B
Gloucester City Council,23UE,Off Street Car Parks,PP110,General Repair/Maint Buildings,3000,Longsmith St door repair,17/12/2014,395081,131.37,NET,Rf Gardiner Limited,12299B
Gloucester City Council,23UE,Off Street Car Parks,PP110,General Repair/Maint Buildings,3000,Longsmith St works,17/12/2014,395088,695.32,NET,Rf Gardiner Limited,12299B
Gloucester City Council,23UE,Off Street Car Parks,PP110,General Repair/Maint Buildings,3000,Station Rd kerb edging repairs,17/12/2014,395089,32.84,NET,Rf Gardiner Limited,12299B
Gloucester City Council,23UE,Off Street Car Parks,PP110,General Repair/Maint Buildings,3000,St Michael's Sq lighting repairs,17/12/2014,395115,793.66,NET,Rf Gardiner Limited,12299B
Gloucester City Council,23UE,Off Street Car Parks,PP110,General Repair/Maint Buildings,3000,"Westgate Leisure Centre, sign",17/12/2014,395119,16.42,NET,Rf Gardiner Limited,12299B
Gloucester City Council,23UE,Off Street Car Parks,PP110,General Repair/Maint Buildings,3000,Westgate St car park lighting repairs,17/12/2014,395122,336.06,NET,Rf Gardiner Limited,12299B
Gloucester City Council,23UE,Printing,RP103,Printing,5300,NOV14 PRINTING,17/12/2014,395285,2231.15,NET,Alpha Colour Printers Ltd,00945B
Gloucester City Council,23UE,Swrda Asset Transfer,RY184,Capital General Repairs & Main,0013,Barbican car park lighting,17/12/2014,395130,1688,CAP,Rf Gardiner Limited,12299B
Gloucester City Council,23UE,Swrda Asset Transfer,RY184,Capital General Repairs & Main,0013,grit bin & saltspreader,17/12/2014,395609,275.85,CAP,Ermin Plant Hire & Services Ltd,14150V
Gloucester City Council,23UE,The Arbor,HC501,Operational Equipment <5000,5012,Catering Equipment,17/12/2014,393056,2448.65,NET,Space Catering Equipment Ltd,42828RV
Gloucester City Council,23UE,REDACTED,REDACTED,REDACTED,REDACTED,REDACTED,17/12/2014,REDACTED,30,NET,REDACTED,REDACTED
Gloucester City Council,23UE,REDACTED,REDACTED,REDACTED,REDACTED,REDACTED,17/12/2014,REDACTED,-2.5,NET,REDACTED,REDACTED
Gloucester City Council,23UE,Utilities,PT502,Electricity Supply,3110,UTILITIES TO DEC 2014,17/12/2014,395570,43751.54,NET,West Mercia Energy,11669Z
Gloucester City Council,23UE,Utilities,PT502,Gas Supply,3100,UTILITIES TO DEC 2014,17/12/2014,395570,25235.26,NET,West Mercia Energy,11669Z
Gloucester City Council,23UE,Aspire Admin Charges,LC105,Contracted Services,6970,Monthly Charge December 2014,18/12/2014,395266,71458.92,NET,Aspire Sports & Cultural Trust,08135V
Gloucester City Council,23UE,Cemeteries,HC300,Routine R And M - Vehicles,4011,14/11/2014 labour and parts,18/12/2014,395327,597.25,NET,T H White Ltd,08413P
Gloucester City Council,23UE,Cemeteries,HC300,Routine R And M - Vehicles,4011,18/11/2014 labour and parts,18/12/2014,395326,396,NET,T H White Ltd,08413P
Gloucester City Council,23UE,Cemeteries,HC300,Routine R And M - Vehicles,4011,24/11/2014 labour,18/12/2014,395325,131,NET,T H White Ltd,08413P
Gloucester City Council,23UE,City Museum And Art Gallery,LM200,Exhibits And Collections,5038,Various Items,18/12/2014,395272,134.85,NET,Lyco Direct Limited,51364C
Gloucester City Council,23UE,Civica Contract Revs & Bens,RT250,Contracted Services,6970,Pension Excess Reclaim November 2014,18/12/2014,395648,12040.68,NET,Civica Uk Ltd,10841X
Gloucester City Council,23UE,Civica Contract Revs & Bens,RT250,Contracted Services,6970,Pension Excess Reclaim October 2014,18/12/2014,395647,12303.48,NET,Civica Uk Ltd,10841X
Gloucester City Council,23UE,Civica It Contract,RT270,Contracted Services,6970,Pension Excess Reclaim July 2014,18/12/2014,395528,1565.6,NET,Civica Uk Ltd,10841X
Gloucester City Council,23UE,Crematorium,HC200,Cleaning Materials,3600,Cleaning Materials,18/12/2014,395267,33.49,NET,Core Hygiene Ltd,03885P
Gloucester City Council,23UE,Crematorium,HC200,Memorial Plaques,5053,Plaque,18/12/2014,395262,54,NET,Arkell & Hurcombe,59812T
Gloucester City Council,23UE,Crematorium,HC200,Memorial Plaques,5053,Plaque,18/12/2014,395264,54,NET,Arkell & Hurcombe,59812T
Gloucester City Council,23UE,Crematorium,HC200,Memorial Plaques,5053,Plaque,18/12/2014,395265,96,NET,Arkell & Hurcombe,59812T
Gloucester City Council,23UE,Crematorium,HC200,Memorial Plaques,5053,Plaques,18/12/2014,395263,396,NET,Arkell & Hurcombe,59812T
Gloucester City Council,23UE,Docks Complex - Telephones,RB120,Telephones And Fax,5410,Broadband Nov- Dec 2014,18/12/2014,393959,30,NET,Virgin Media Payments Ltd,09376J
Gloucester City Council,23UE,Docks Complex - Telephones,RB120,Telephones And Fax,5410,Broadband Nov- Dec 2014,18/12/2014,393960,39,NET,Virgin Media Payments Ltd,09376J
Gloucester City Council,23UE,Docks Complex - Telephones,RB120,Telephones And Fax,5410,Call Charges Nov 2014,18/12/2014,392596,14.49,NET,Virgin Media Payments Ltd,09376J
Gloucester City Council,23UE,Docks Complex - Telephones,RB120,Telephones And Fax,5410,Charges Cllr James Sep- Oct 14,18/12/2014,392169,30,NET,Virgin Media Payments Ltd,09376J
Gloucester City Council,23UE,Docks Complex - Telephones,RB120,Telephones And Fax,5410,Charges Nov- Dec 2014,18/12/2014,392936,80,NET,Virgin Media Payments Ltd,09376J
Gloucester City Council,23UE,Docks Complex - Telephones,RB120,Telephones And Fax,5410,Charges Oct - Nov 2014,18/12/2014,392592,33,NET,Virgin Media Payments Ltd,09376J
Gloucester City Council,23UE,Docks Complex - Telephones,RB120,Telephones And Fax,5410,Charges Oct- Nov 2014,18/12/2014,392579,30,NET,Virgin Media Payments Ltd,09376J
Gloucester City Council,23UE,Docks Complex - Telephones,RB120,Telephones And Fax,5410,Charges Oct- Nov 2014,18/12/2014,392587,39,NET,Virgin Media Payments Ltd,09376J
Gloucester City Council,23UE,Docks Complex - Telephones,RB120,Telephones And Fax,5410,Charges Oct- Nov 2014,18/12/2014,392593,80,NET,Virgin Media Payments Ltd,09376J
Gloucester City Council,23UE,Environmental Planning,LM340,Fees For Services Received,5350,KINGSWAY NOV14 GROUNDS MAINTENANCE,18/12/2014,395276,1000,NET,Charlton Abbotts Forestry Ltd,14989X
Gloucester City Council,23UE,Guildhall Bar And Caf�,LA210,Catering Provisions -Food,5110,Food,18/12/2014,395550,120.76,NET,Woodward Foodservice,10714F
Gloucester City Council,23UE,Guildhall Bar And Caf�,LA210,Catering Provisions -Liquor,5111,Gas,18/12/2014,395256,33.26,NET,Cellar Supplies Cheltenham Ltd,01563L
Gloucester City Council,23UE,REDACTED,REDACTED,REDACTED,REDACTED,REDACTED,18/12/2014,REDACTED,100,NET,REDACTED,REDACTED
Gloucester City Council,23UE,REDACTED,REDACTED,REDACTED,REDACTED,REDACTED,18/12/2014,REDACTED,132.27,NET,REDACTED,REDACTED
Gloucester City Council,23UE,REDACTED,REDACTED,REDACTED,REDACTED,REDACTED,18/12/2014,REDACTED,100,NET,REDACTED,REDACTED
Gloucester City Council,23UE,REDACTED,REDACTED,REDACTED,REDACTED,REDACTED,18/12/2014,REDACTED,60,NET,REDACTED,REDACTED
Gloucester City Council,23UE,Homelessness,CH120,Fees For Services Received,5350,Medical Advice Nov 2014,18/12/2014,395268,35,NET,Now Medical,03468L
Gloucester City Council,23UE,Homelessness,CH120,Fees For Services Received,5350,Medical Report,18/12/2014,395269,20.5,NET,Rosebank Health,03041E
Gloucester City Council,23UE,Homelessness,CH120,Removal And Storage Fees,5513,STORAGE,18/12/2014,395251,90.64,NET,Advanced Removals & Storage Ltd,57142R
Gloucester City Council,23UE,Homelessness,CH120,Removal And Storage Fees,5513,STORAGE,18/12/2014,395270,101.25,NET,Advanced Removals & Storage Ltd,57142R
Gloucester City Council,23UE,Homelessness Prevention,CH122,Fees For Services Received,5350,Medical Report,18/12/2014,395253,20.5,NET,Gloucester City Health Centre,02093U
Gloucester City Council,23UE,Investment Property,RB500,Fire Alarm Maintenance,3053,16/07/2014,18/12/2014,395654,108,NET,Adt Fire & Security Plc,54086D
Gloucester City Council,23UE,Investment Property,RB500,Fire Alarm Maintenance,3053,22/07/2014,18/12/2014,395655,303.42,NET,Adt Fire & Security Plc,54086D
Gloucester City Council,23UE,Investment Property,RB500,Fire Alarm Maintenance,3053,29/08/2014,18/12/2014,395651,130,NET,Adt Fire & Security Plc,54086D
Gloucester City Council,23UE,Investment Property,RB500,Fire Alarm Maintenance,3053,Line Charges,18/12/2014,395653,372.59,NET,Adt Fire & Security Plc,54086D
Gloucester City Council,23UE,Investment Property,RB500,Fire Alarm Maintenance,3053,Service Charges,18/12/2014,395656,2651.72,NET,Adt Fire & Security Plc,54086D
Gloucester City Council,23UE,Legal Services,RS200,Basic Pay - Temporary Staff,2751,temporary staff,18/12/2014,394970,1073.36,NET,Venn Group Ltd,04339P
Gloucester City Council,23UE,Northwarehouse,RB150,Fire Alarm Maintenance,3053,Fire Alarm System works 20/08/2014 & 21/08/2014,18/12/2014,395652,588,NET,Adt Fire & Security Plc,54086D
Gloucester City Council,23UE,Rehousing,CH111,Fees For Services Received,5350,Medical Advice Nov 2014,18/12/2014,395268,60,NET,Now Medical,03468L
Gloucester City Council,23UE,Rehousing,CH111,Fees For Services Received,5350,Medical Report,18/12/2014,395271,20.5,NET,Kingsholm Surgery,11948S
Gloucester City Council,23UE,Retail Market - Landlord,HM300,Cleaning Materials,3600,Cleaning Materials,18/12/2014,393072,357.73,NET,Core Hygiene Ltd,03885P
Gloucester City Council,23UE,Retail Market - Landlord,HM300,General Repair/Maint Buildings,3000,Call Out 10/11/2014,18/12/2014,395282,250,NET,Pakawaste Ltd,02969S
Gloucester City Council,23UE,Retail Market - Landlord,HM300,Sewerage And Environ Charges,3402,Call Out 10/11/2014,18/12/2014,395283,66.5,NET,Pakawaste Ltd,02969S
Gloucester City Council,23UE,Tree Planting Grant Funded,LY150,Contract Payments,0020,VARIOUS TREES,18/12/2014,395287,892.97,CAP,Mount Pleasant Trees,51352K
Gloucester City Council,23UE,Tree Planting Grant Funded,LY150,Contract Payments,0020,VARIOUS TREES,18/12/2014,395288,400.5,CAP,Mount Pleasant Trees,51352K
Gloucester City Council,23UE,Aspire Admin Charges,LC105,Other Minor Income,9900,BAILIFF PAYMENTS 05/12/14,19/12/2014,395681,110,NET,Aspire Sports & Cultural Trust,08135V
Gloucester City Council,23UE,Asset Management,RS300,Publications,5060,Punchline Editorial,19/12/2014,395532,600,NET,Moose Marketing & Pr,03952A
Gloucester City Council,23UE,Cemeteries,HC300,Maint Of Grounds - General,3030,Subscription,19/12/2014,395546,205,NET,National Association Of Memorial Masons,59564N
Gloucester City Council,23UE,Civil Parking Enforcement,PT741,Fees For Services Received,5350,TEC Account,19/12/2014,395688,2500,NET,Traffic Enforcement Centre,09456K
Gloucester City Council,23UE,Crematorium,HC200,General Repair/Maint Buildings,3000,"Carpet, cushions etc cleaning",19/12/2014,395535,350,NET,Zagota Creations,03211D
Gloucester City Council,23UE,Crematorium,HC200,Repair/Maint Of Fixed Plant,3006,Various Items,19/12/2014,395536,1236.29,NET,Facultatieve Technologies Ltd,51210H
Gloucester City Council,23UE,Disabled Facilities Grants,CY013,Disabled Facility Grants,0074,Disabled Facilities Grant,19/12/2014,395545,4288,CAP,Pinetree (Gloucester) Ltd,53288Y
Gloucester City Council,23UE,Docks Complex - Services,RB100,Cleaning Materials,3600,Cleaning Materials,19/12/2014,394731,24.42,NET,Cleanmy Ltd,06971S
Gloucester City Council,23UE,Gl1 Pool Air Handling System,LY152,Contract Payments,0020,Ventilation System,19/12/2014,395534,22950.2,CAP,Esg Pool Ventilation Ltd,14715P
Gloucester City Council,23UE,Gloucester Guildhall,LA100,Maintenance Of Equipment,5030,Site Attendance,19/12/2014,395558,141,NET,High Performance Doors Limited,06444X
Gloucester City Council,23UE,Guildhall Bar And Caf�,LA210,Catering Provisions -Liquor,5111,Gloucester Gold,19/12/2014,395526,114,NET,Gloucester Brewery,13373F
Gloucester City Council,23UE,Guildhall Bar And Caf�,LA210,Hire Of Equipment,5020,Tumblers,19/12/2014,395525,218.5,NET,Gerry Dance Disposables Ltd,54579Y
Gloucester City Council,23UE,Homelessness,CH120,Rent In Advance,5516,RIA,19/12/2014,395682,364.6,NET,Barton & Tredworth Developments Ltd,58165T
Gloucester City Council,23UE,REDACTED,REDACTED,REDACTED,REDACTED,REDACTED,19/12/2014,REDACTED,364.6,NET,REDACTED,REDACTED
Gloucester City Council,23UE,REDACTED,REDACTED,REDACTED,REDACTED,REDACTED,19/12/2014,REDACTED,364.6,NET,REDACTED,REDACTED
Gloucester City Council,23UE,REDACTED,REDACTED,REDACTED,REDACTED,REDACTED,19/12/2014,REDACTED,400,NET,REDACTED,REDACTED
Gloucester City Council,23UE,Internal Audit,RT300,Basic Pay - Temporary Staff,2751,temporary staff w/e 21/11/2014,19/12/2014,395542,1295,NET,Robert Half Ltd,03959K
Gloucester City Council,23UE,Internal Audit,RT300,Basic Pay - Temporary Staff,2751,temporary staff w/e 28/11/2014,19/12/2014,395541,1295,NET,Robert Half Ltd,03959K
Gloucester City Council,23UE,REDACTED,REDACTED,REDACTED,REDACTED,REDACTED,19/12/2014,REDACTED,550,NET,REDACTED,REDACTED
Gloucester City Council,23UE,Meet & Greet,FP309,Advertising And Publicity,5702,December 2014 issue,19/12/2014,395538,120,NET,Gtw Media Ltd,14516Y
Gloucester City Council,23UE,Summer Festival,LT300,Fees For Services Received,5350,Storage Containers 07/08/2014,19/12/2014,389344,582.57,NET,Konstructa Hire Ltd,12989S
Gloucester City Council,23UE,Summer Festival,LT300,Fees For Services Received,5350,Storage Containers,19/12/2014,395646,425,NET,Konstructa Hire Ltd,12989S
Gloucester City Council,23UE,The Arbor,HC501,Maint Agreements - Buildings,3010,monthly machine warranty,19/12/2014,394747,61.58,NET,Caffeica Ltd,11923J
Gloucester City Council,23UE,Advance City Attractions,LT109,Materials For Sale,5080,Reseller Entries,22/12/2014,395063,31.81,NET,West Midlands Safari & Leisure Park,10891F
Gloucester City Council,23UE,Advance City Attractions,LT109,Sale Of Goods And Services,9230,Reseller Entries,22/12/2014,395063,-6.17,NET,West Midlands Safari & Leisure Park,10891F
Gloucester City Council,23UE,Aspire Admin Charges,LC105,Security Services Fees,5351,Services January 2015,22/12/2014,395557,181.28,NET,G4s Cash Solutions (Uk) Ltd,04290V
Gloucester City Council,23UE,REDACTED,REDACTED,REDACTED,REDACTED,REDACTED,22/12/2014,REDACTED,55,NET,REDACTED,REDACTED
Gloucester City Council,23UE,Building Control,PT400,Publications,5060,KNIGHTS GUIDE,22/12/2014,393564,315,NET,Lexis Nexis Ltd,01712U
Gloucester City Council,23UE,Business Transformation & Tech,RT700,Computer Software Maintenance,5427,V11 Upgrade,22/12/2014,395484,2000,NET,Civica Uk Ltd,10841X
Gloucester City Council,23UE,REDACTED,REDACTED,REDACTED,REDACTED,REDACTED,22/12/2014,REDACTED,8000,NET,REDACTED,REDACTED
Gloucester City Council,23UE,Cemeteries,HC300,Clothing,5200,Polo Shirts,22/12/2014,394359,22.02,NET,Elms & Elms,15054G
Gloucester City Council,23UE,Cemeteries,HC300,"Seeds, Trees, Plants, Shrubs",3028,87 Tree Ties,22/12/2014,395284,180.53,NET,Norton Plantaria,53679C
Gloucester City Council,23UE,Cems/Crems Admin,HC100,Security Services Fees,5351,Cash Processed November 2014,22/12/2014,395543,13.73,NET,G4s Cash Solutions (Uk) Ltd,04290V
Gloucester City Council,23UE,Cems/Crems Admin,HC100,Security Services Fees,5351,Services January 2015,22/12/2014,395557,103.33,NET,G4s Cash Solutions (Uk) Ltd,04290V
Gloucester City Council,23UE,City Museum And Art Gallery,LM200,Operational Equipment <5000,5012,"Bowling Green, grass cutting",22/12/2014,395502,59,NET,Greenfields Garden Services Ltd,48130G
Gloucester City Council,23UE,City Museum And Art Gallery,LM200,Publications For Sale,5064,GOODS FOR RESALE,22/12/2014,393566,18.72,NET,Giftworks Ltd,12855R
Gloucester City Council,23UE,City Museum And Art Gallery,LM200,Security Services Fees,5351,Services January 2015,22/12/2014,395557,90.64,NET,G4s Cash Solutions (Uk) Ltd,04290V
Gloucester City Council,23UE,Civic Admin And Hospitality,RC210,Hire Of Taxis,4053,Chauffeuring Oct- Dec 2014,22/12/2014,395515,562.5,NET,Chris Hall Chauffeuring,11660U
Gloucester City Council,23UE,Client Revs & Bens Contract,RT240,Fees For Services Received,5350,Arrest & Detention,22/12/2014,395497,49.5,NET,Assevarate Ltd,11749A
Gloucester City Council,23UE,Client Revs & Bens Contract,RT240,Security Services Fees,5351,Cash Processed November 2014,22/12/2014,395543,3.43,NET,G4s Cash Solutions (Uk) Ltd,04290V
Gloucester City Council,23UE,Client Revs & Bens Contract,RT240,Security Services Fees,5351,Services January 2015,22/12/2014,395557,270.81,NET,G4s Cash Solutions (Uk) Ltd,04290V
Gloucester City Council,23UE,Community Safety Projects,FP500,Basic Pay - Temporary Staff,2751,temporary staff w/e 28/11/2014,22/12/2014,395300,507.35,NET,Travail Employment Ltd,49371W
Gloucester City Council,23UE,Contact Centre,RB300,Basic Pay -Admin /Prof Staff,2601,STAFF W/E 23/08/14,22/12/2014,395420,245.63,NET,One To One Recruitment,04752H
Gloucester City Council,23UE,Crematorium,HC200,Cleaning Materials,3600,SANITARY DISPOSAL,22/12/2014,395424,17.28,NET,Minster Cleaning Services,02158R
Gloucester City Council,23UE,Development Management,PT200,Microfilming / Cd-Rom Storage,5330,Storage November 2014,22/12/2014,395511,29.78,NET,Transmedia Technology Ltd,08635T
Gloucester City Council,23UE,Eastgate Rooftop Emerg Works,RY159,Contract Payments,0020,"Asphalt Repairs, Eastgate roof top car p",22/12/2014,395508,1850,CAP,Rio Asphalt & Paving Co Ltd,12302R
Gloucester City Council,23UE,Flooding And Drainage,HE306,Overtime -Building Maint Staff,1303,Black Bridge Clearance,22/12/2014,395513,250,NET,Tcv T/A The Conservation Volunteers,55897V
Gloucester City Council,23UE,Folk Museum,LM210,Publications For Sale,5064,CREDITED ON 094345,22/12/2014,395418,90,NET,Giftworks Ltd,12855R
Gloucester City Council,23UE,Folk Museum,LM210,Publications For Sale,5064,GOODS FOR RESALE,22/12/2014,393566,143.54,NET,Giftworks Ltd,12855R
Gloucester City Council,23UE,Folk Museum,LM210,Security Services Fees,5351,Services January 2015,22/12/2014,395557,90.64,NET,G4s Cash Solutions (Uk) Ltd,04290V
Gloucester City Council,23UE,Gloucester Guildhall,LA100,Security Services Fees,5351,Services January 2015,22/12/2014,395557,90.64,NET,G4s Cash Solutions (Uk) Ltd,04290V
Gloucester City Council,23UE,Grants To Voluntary Sector,FG100,Members Allocation Fund,7100F,Reimbursement for grant funds,22/12/2014,395506,500,NET,Quedgeley Parish Council,48506G
Gloucester City Council,23UE,Guildhall Cinema,LA202,Fees For Services Received,5350,Monthly film transport charge,22/12/2014,394973,214.24,NET,Nft Logistics Ltd,13505N
Gloucester City Council,23UE,Guildhall Events,LA200,Advertising And Publicity,5702,Whats on booklets,22/12/2014,395516,1460,NET,Paddock Print,03014H
Gloucester City Council,23UE,Homelessness,CH120,Rent In Advance,5516,RIA & Deposit,22/12/2014,395722,484.6,NET,Barton & Tredworth Developments Ltd,58165T
Gloucester City Council,23UE,Homelessness Prevention,CH122,Fees For Services Received,5350,RIA & Deposit,22/12/2014,395722,500,NET,Barton & Tredworth Developments Ltd,58165T
Gloucester City Council,23UE,Legal Services,RS200,Basic Pay - Temporary Staff,2751,temporary staff w/e 30/11/2014,22/12/2014,395517,1549.93,NET,Venn Group Ltd,04339P
Gloucester City Council,23UE,Legal Services,RS200,Publications,5060,Planning Cont their Enforce,22/12/2014,395496,49,NET,Thomson Reuters,43110M
Gloucester City Council,23UE,Play Area Refurbishment,LY071,Contract Payments,0020,Ammonite Fossil,22/12/2014,395530,13.99,CAP,Playground Sculptures,11899D
Gloucester City Council,23UE,Play Area Refurbishment,LY071,Contract Payments,0020,Hinge Gates,22/12/2014,395296,1536.9,CAP,Medway Galvanising Co Ltd,03660T
Gloucester City Council,23UE,Postal Services,RS120,Postages,5400,Large Response  24/11/2014,22/12/2014,395547,138,NET,Royal Mail S.Wales & South West,35830S
Gloucester City Council,23UE,Postal Services,RS120,Postages,5400,Post 21/11 - 04/12 2014,22/12/2014,395548,1166.78,NET,Royal Mail S.Wales & South West,35830S
Gloucester City Council,23UE,Retail Market - Landlord,HM300,Window Cleaning,3610,"Monthly Window Clean, Dec 2014",22/12/2014,395514,140,NET,Cornwall Cleaning Services,14050A
Gloucester City Council,23UE,Summer Festival,LT300,Hire Of Equipment,5020,Aborted Collection,22/12/2014,395510,425,NET,Konstructa Hire Ltd,12989S
Gloucester City Council,23UE,Tic Trading,LT110,Materials For Sale,5080,Sales November 2014,22/12/2014,394928,483.25,NET,REDACTED,REDACTED
Gloucester City Council,23UE,Tic Trading,LT110,Sale Of Goods And Services,9230,Sales November 2014,22/12/2014,394928,-40.28,NET,REDACTED,REDACTED
Gloucester City Council,23UE,Tourism Marketing,LT100,Security Services Fees,5351,Services January 2015,22/12/2014,395557,90.64,NET,G4s Cash Solutions (Uk) Ltd,04290V
Gloucester City Council,23UE,Vehicles,RS140,Fuel,4012,Fuel,22/12/2014,395544,230.34,NET,Allstar Business Solutions Ltd (Arval),06594A
Gloucester City Council,23UE,Accelerator 1 Econ Challenge F,FP302,Other Minor Supplies Services,5590,BUSINESS SUPPORT PROGRAMME,23/12/2014,395735,180,NET,Gloucestershire Enterprise Ltd,18643A
Gloucester City Council,23UE,Accelerator 1 Econ Challenge F,FP302,Other Minor Supplies Services,5590,BUSINESS SUPPORT PROGRAMME,23/12/2014,395736,520,NET,Gloucestershire Enterprise Ltd,18643A
Gloucester City Council,23UE,Allotments,HI104,Stationery,5302,Black Vinyl,23/12/2014,393918,25.7,NET,Severn Signs Ltd,49841D
Gloucester City Council,23UE,Asset Management,RS300,General Repair/Maint Buildings,3000,Footpath Works,23/12/2014,395854,2934.92,NET,Anderson Civil Engineering Uk Ltd,09083D
Gloucester City Council,23UE,Business Support,PT250,Publications,5060,Months News November 2014,23/12/2014,395488,165.5,NET,Ymk Supermarket,55281U
Gloucester City Council,23UE,Business Transformation & Tech,RT700,Computer Hardware Maintenance,5426,Maintenance Agreement 14/15,23/12/2014,394213,716.5,NET,Stanford Marsh Ltd*,51139M
Gloucester City Council,23UE,Business Transformation & Tech,RT700,Computer Hardware Maintenance,5426,SCANNER DEC 14-FEB 15,23/12/2014,394978,321,NET,Stanford Marsh Ltd*,51139M
Gloucester City Council,23UE,Business Transformation & Tech,RT700,Computer Software Maintenance,5427,NATIONAL GRID,23/12/2014,395747,250,NET,Landmark Information Group Ltd,59535W
Gloucester City Council,23UE,Business Transformation & Tech,RT700,Internet Service Provider Fees,5429,Charges Oct- Nov 2014,23/12/2014,394470,229.27,NET,Virgin Media Business,01869B
Gloucester City Council,23UE,Bus Station,RB400,General Repair/Maint Buildings,3000,Various Items,23/12/2014,395809,984.12,NET,Wallgate Ltd,48870F
Gloucester City Council,23UE,Cemeteries,HC300,Basic Pay - Temporary Staff,2751,Transfer Fee,23/12/2014,394181,750,NET,Anderson Recruitment Ltd,14646H
Gloucester City Council,23UE,Cemeteries,HC300,Purch Vehicles/M. Plant <5000,4000,TRIMMER,23/12/2014,395721,437.27,NET,Spaldings,48759Y
Gloucester City Council,23UE,Cems/Crems Admin,HC100,Maintenance Of Equipment,5030,AIR FRESHNER,23/12/2014,395716,150,NET,Pyramid Hygiene Ltd,01897B
Gloucester City Council,23UE,City Museum And Art Gallery,LM200,Publications For Sale,5064,Pin Badges,23/12/2014,392166,298.92,NET,Wg Retro T/A Pop Art Products Ltd,15007S
Gloucester City Council,23UE,City Museum Catering,LM202,Catering Provisions -Liquor,5111,Food,23/12/2014,395816,45.8,NET,Woody's Fruit & Veg,11798L
Gloucester City Council,23UE,Civic Admin And Hospitality,RC210,Hired Catering,5120,PA SYSTEM,23/12/2014,395748,100,NET,REDACTED,REDACTED
Gloucester City Council,23UE,Client Revs & Bens Contract,RT240,Bailiffs Fees,5368,VAT due on statutory fees,23/12/2014,395529,276.95,NET,Bristow & Sutor,05450M
Gloucester City Council,23UE,Client Revs & Bens Contract,RT240,Bailiffs Fees,5368,VAT on fees collected,23/12/2014,395523,0,NET,Phoenix Commercial Collections Ltd,13435J
Gloucester City Council,23UE,Client Revs & Bens Contract,RT240,Bailiffs Fees,5368,VAT on fees collected,23/12/2014,395524,0,NET,Phoenix Commercial Collections Ltd,13435J
Gloucester City Council,23UE,Client Revs & Bens Contract,RT240,Fees For Services Received,5350,Charges July-Sept 2014,23/12/2014,393617,92.15,NET,Brighton & Hove City Council,00078J
Gloucester City Council,23UE,Community Safety Projects,FP500,Basic Pay - Temporary Staff,2751,temporary staff w/e 05/12/2014,23/12/2014,395806,500.05,NET,Travail Employment Ltd,49371W
Gloucester City Council,23UE,Contact Centre,RB300,Basic Pay -Admin /Prof Staff,2601,temporary staff w/e 07/12/2014,23/12/2014,395812,792,NET,Hbhc Synergy Ltd,13363J
Gloucester City Council,23UE,Contact Centre,RB300,Basic Pay -Admin /Prof Staff,2601,temporary staff w/e 30/11/2014,23/12/2014,395811,451,NET,Hbhc Synergy Ltd,13363J
Gloucester City Council,23UE,Contact Centre,RB300,Basic Pay -Admin /Prof Staff,2601,temporary staff w/e 16/11/2014,23/12/2014,395504,715,NET,Cps Anystaff Recruitment Ltd,13945D
Gloucester City Council,23UE,Contact Centre,RB300,Basic Pay -Admin /Prof Staff,2601,temporary staff w/e 30/11/2014,23/12/2014,395505,748,NET,Cps Anystaff Recruitment Ltd,13945D
Gloucester City Council,23UE,Contact Centre,RB300,Basic Pay -Admin /Prof Staff,2601,Temporary Staff w/e 12/12/2014,23/12/2014,395807,1244.1,NET,One To One Recruitment,04752H
Gloucester City Council,23UE,Contact Centre,RB300,Uniforms,5201,Uniforms,23/12/2014,395501,279.35,NET,Meltemi Company Clothing Limited,54572N
Gloucester City Council,23UE,Corporate Reporting /Financing,RC504,Audit Fees,5383,Third Installment 14/15,23/12/2014,395805,20925,NET,Kpmg,06498X
Gloucester City Council,23UE,Corporate Reporting /Financing,RC504,Audit Fees,5383,Third Installment grants 14/15,23/12/2014,395764,2347.5,NET,Kpmg,06498X
Gloucester City Council,23UE,Council Streetcare Team,HI101,Window Cleaning,3610,WINDOW CLEANING,23/12/2014,395198,120,NET,Poles Apart Window Cleaning,11636R
Gloucester City Council,23UE,Countryside Unit,LP201,Tyres,4014,Various Parts,23/12/2014,395486,113.98,NET,Ats Euromaster Ltd,06005E
Gloucester City Council,23UE,REDACTED,REDACTED,REDACTED,REDACTED,REDACTED,23/12/2014,REDACTED,46.5,NET,REDACTED,REDACTED
Gloucester City Council,23UE,REDACTED,REDACTED,REDACTED,REDACTED,REDACTED,23/12/2014,REDACTED,2400,NET,REDACTED,REDACTED
Gloucester City Council,23UE,Development Management,PT200,Subscriptions,5600,Membership 14/15,23/12/2014,395495,200,NET,Planning Jungle Limited,15068V
Gloucester City Council,23UE,Disabled Facilities Grants,CY013,Disabled Facility Grants,0074,Disabled Facilities Grant,23/12/2014,395842,2478,CAP,Nks Contracts (Central) Ltd,56355E
Gloucester City Council,23UE,Docks Complex - Services,RB100,Catering Provisions -Food,5110,FOOD,23/12/2014,395753,107.82,NET,Janes Pantry,24500W
Gloucester City Council,23UE,Docks Complex - Services,RB100,Cleaning Materials,3600,Cleaning Materials,23/12/2014,395489,29.88,NET,Cleanmy Ltd,06971S
Gloucester City Council,23UE,Docks Complex - Services,RB100,General Repair/Maint Buildings,3000,"North Warehouse, 01/12/2014",23/12/2014,395494,250,NET,Three Counties Drain Service,44033V
Gloucester City Council,23UE,Docks Complex - Services,RB100,General Repair/Maint Buildings,3000,"North Warehouse, 25/11/2014",23/12/2014,395493,80,NET,Three Counties Drain Service,44033V
Gloucester City Council,23UE,Docks Complex - Services,RB100,Recycling,3631,Recycling Oct 2014,23/12/2014,393707,76.4,NET,Printwaste Recycling,57114W
Gloucester City Council,23UE,Docks Complex - Telephones,RB120,Mobile Phones,5409,Charges October 2014,23/12/2014,394217,1914.92,NET,Everything Everywhere Ltd (T-Mobile),57543S
Gloucester City Council,23UE,Docks Complex - Telephones,RB120,Telephones And Fax,5410,CALLS NOV 2014,23/12/2014,395184,3948.11,NET,Gamma Business Communications,10260A
Gloucester City Council,23UE,Docks Complex - Telephones,RB120,Telephones And Fax,5410,CALLS NOV 2014,23/12/2014,395185,2149.39,NET,Gamma Business Communications,10260A
Gloucester City Council,23UE,Electrical Investigatory Works,RY142,Legal/Survey Fees -Land,0002,"Kings Square, Lightweight bollard",23/12/2014,395843,220,CAP,Mpl Wrought Iron Llp,03907P
Gloucester City Council,23UE,Financial Services,RT200,Consultants Fees,5349,temporary staff,23/12/2014,395855,12000,NET,Robert Half Ltd,03959K
Gloucester City Council,23UE,Financial Services,RT200,Publications,5060,2014/15 ACCOUNTS,23/12/2014,395723,830,NET,Cipfa Business Limited,09260F
Gloucester City Council,23UE,General Works Fund,RY203,Int On Purch Cost -Land,0003,temporary staff w/e 30/11/2014,23/12/2014,395302,836,CAP,Find The Engineer Recruitment Ltd*,12977Z
Gloucester City Council,23UE,Guildhall Bar And Caf�,LA210,Catering Provisions -Food,5110,Food,23/12/2014,391800,110.35,NET,Woodward Foodservice,10714F
Gloucester City Council,23UE,Guildhall Bar And Caf�,LA210,Catering Provisions -Food,5110,Food,23/12/2014,391801,101.76,NET,Woodward Foodservice,10714F
Gloucester City Council,23UE,Guildhall Bar And Caf�,LA210,Catering Provisions -Food,5110,Food,23/12/2014,392179,85.13,NET,Woodward Foodservice,10714F
Gloucester City Council,23UE,Guildhall Bar And Caf�,LA210,Catering Provisions -Food,5110,Food,23/12/2014,395815,125.08,NET,Woody's Fruit & Veg,11798L
Gloucester City Council,23UE,Guildhall Bar And Caf�,LA210,Catering Provisions -Food,5110,Food,23/12/2014,395826,265.97,NET,Woodward Foodservice,10714F
Gloucester City Council,23UE,Guildhall Bar And Caf�,LA210,Catering Provisions -Food,5110,FOOD,23/12/2014,395754,16.45,NET,Janes Pantry,24500W
Gloucester City Council,23UE,Guildhall Bar And Caf�,LA210,Catering Provisions -Food,5110,FOOD,23/12/2014,395759,24,NET,Taynton Farm Foods,09653F
Gloucester City Council,23UE,Guildhall Bar And Caf�,LA210,Catering Provisions -Food,5110,Milk,23/12/2014,395817,4.96,NET,Total Produce Gloucester,12645E
Gloucester City Council,23UE,Guildhall Bar And Caf�,LA210,Catering Provisions -Food,5110,Milk,23/12/2014,395818,4.96,NET,Total Produce Gloucester,12645E
Gloucester City Council,23UE,Guildhall Bar And Caf�,LA210,Catering Provisions -Food,5110,Milk,23/12/2014,395819,4.96,NET,Total Produce Gloucester,12645E
Gloucester City Council,23UE,Guildhall Bar And Caf�,LA210,Catering Provisions -Food,5110,Milk,23/12/2014,395820,4.96,NET,Total Produce Gloucester,12645E
Gloucester City Council,23UE,Guildhall Bar And Caf�,LA210,Catering Provisions -Food,5110,Milk,23/12/2014,395821,4.96,NET,Total Produce Gloucester,12645E
Gloucester City Council,23UE,REDACTED,REDACTED,REDACTED,REDACTED,REDACTED,23/12/2014,REDACTED,100,NET,REDACTED,REDACTED
Gloucester City Council,23UE,REDACTED,REDACTED,REDACTED,REDACTED,REDACTED,23/12/2014,REDACTED,100,NET,REDACTED,REDACTED
Gloucester City Council,23UE,REDACTED,REDACTED,REDACTED,REDACTED,REDACTED,23/12/2014,REDACTED,2461.67,NET,REDACTED,REDACTED
Gloucester City Council,23UE,REDACTED,REDACTED,REDACTED,REDACTED,REDACTED,23/12/2014,REDACTED,600,NET,REDACTED,REDACTED
Gloucester City Council,23UE,Guildhall Events,LA200,Fees For Services Received,5350,Months News November,23/12/2014,395293,29.9,NET,W H Smith Ltd,40860M
Gloucester City Council,23UE,Guildhall Events,LA200,Fees For Services Received,5350,"Months News, September",23/12/2014,395292,27.85,NET,W H Smith Ltd,40860M
Gloucester City Council,23UE,REDACTED,REDACTED,REDACTED,REDACTED,REDACTED,23/12/2014,REDACTED,120,NET,REDACTED,REDACTED
Gloucester City Council,23UE,REDACTED,REDACTED,REDACTED,REDACTED,REDACTED,23/12/2014,REDACTED,120,NET,REDACTED,REDACTED
Gloucester City Council,23UE,Hackney Carriages,HL100,Other Minor Supplies Services,5590,CLOTHING,23/12/2014,395423,65,NET,Safpro Industrial Supply Co,39190W
Gloucester City Council,23UE,Hackney Carriages,HL100,Other Minor Supplies Services,5590,LOGO'D WORKWEAR,23/12/2014,394430,115.66,NET,Safpro Industrial Supply Co,39190W
Gloucester City Council,23UE,Hillfield Gardens S106,LY112,Contract Payments,0020,Hillfield Gardens,23/12/2014,392533,3695,CAP,Greenfields Garden Services Ltd,48130G
Gloucester City Council,23UE,Hmo Licences,HE520,Operational Equipment <5000,5012,TRAINING COURSE,23/12/2014,395710,630,NET,Asset Trades And Training Association,15077U
Gloucester City Council,23UE,REDACTED,REDACTED,REDACTED,REDACTED,REDACTED,23/12/2014,REDACTED,424.61,NET,REDACTED,REDACTED
Gloucester City Council,23UE,REDACTED,REDACTED,REDACTED,REDACTED,REDACTED,23/12/2014,REDACTED,460,NET,REDACTED,REDACTED
Gloucester City Council,23UE,Investment Property,RB500,General Repair/Maint Buildings,3000,"Badminton Road, clear up",23/12/2014,393921,400,NET,Rj Contracting (Environmental) Ltd,07429H
Gloucester City Council,23UE,Investment Property,RB500,Lift Maintenance,3051,lift service,23/12/2014,395761,76.58,NET,Pickerings Europe Ltd*,58816U
Gloucester City Council,23UE,Investment Property,RB500,Repair/Maint Of Fixed Plant,3006,Engineers 05.11.2014,23/12/2014,394845,620.65,NET,Airvent Systems Limited,51073T
Gloucester City Council,23UE,Legal Services,RS200,Basic Pay - Temporary Staff,2751,temporary staff w/e 07/12/2014,23/12/2014,395507,1284.76,NET,Venn Group Ltd,04339P
Gloucester City Council,23UE,Legal Services,RS200,Basic Pay - Temporary Staff,2751,temporary staff w/e 23/11/14,23/12/2014,394764,1151.46,NET,Venn Group Ltd,04339P
Gloucester City Council,23UE,Legal Services,RS200,Basic Pay - Temporary Staff,2751,temporary staff,23/12/2014,395737,550,NET,Paystream My Max Limited,15049Z
Gloucester City Council,23UE,Legal Services,RS200,Basic Pay - Temporary Staff,2751,temporary staff w/e 16/11/14,23/12/2014,394412,565,NET,Paystream My Max Limited,15049Z
Gloucester City Council,23UE,Legal Services,RS200,Basic Pay - Temporary Staff,2751,temporary staff w/e 23/11/14,23/12/2014,394363,565,NET,Paystream My Max Limited,15049Z
Gloucester City Council,23UE,Legal Services,RS200,Basic Pay - Temporary Staff,2751,temporary staff w/e 9/11/14,23/12/2014,394413,565,NET,Paystream My Max Limited,15049Z
Gloucester City Council,23UE,Legal Services,RS200,Publications,5060,Local Authority Licensing,23/12/2014,395490,1441,NET,Thomson Reuters,43110M
Gloucester City Council,23UE,Members Support,RC300,Members Training,5535,Conference delegate,23/12/2014,395756,199,NET,Local Government Association,11683F
Gloucester City Council,23UE,Nms Contract,HI102,Additional Non-Tender Items,6973,CLOTHING,23/12/2014,395804,116.05,NET,Safpro Industrial Supply Co,39190W
Gloucester City Council,23UE,Off Street Car Parks,PP110,Contracted Services,6970,Parking Income 3rd quarter 14/15,23/12/2014,393054,3016.7,NET,Patrol,09431C
Gloucester City Council,23UE,Off Street Car Parks,PP110,Fees For Services Received,5350,parking equipment services,23/12/2014,395740,470.66,NET,Parkeon Ltd,03238G
Gloucester City Council,23UE,Off Street Car Parks,PP110,Fees For Services Received,5350,Oct & Dec 2014,23/12/2014,394452,527.36,NET,Parkeon Ltd,03238G
Gloucester City Council,23UE,Off Street Car Parks,PP110,General Repair/Maint Buildings,3000,Labour Time,23/12/2014,394232,501.5,NET,Parkeon Ltd,03238G
Gloucester City Council,23UE,Off Street Car Parks,PP110,Rents,3200,Rent,23/12/2014,394423,220,NET,Eddisons Commercial (Property Management) Ltd,08767Y
Gloucester City Council,23UE,Off Street Car Parks,PP110,Rents,3200,Rent Dec 14 - Mar 15,23/12/2014,395533,118.75,NET,Telereal Services Ltd,15121I
Gloucester City Council,23UE,Off Street Car Parks,PP110,Rents,3200,Rent Dec 2014- Mar 2015,23/12/2014,395487,46250,NET,Dtz,08367V
Gloucester City Council,23UE,Off Street Car Parks,PP110,Rents,3200,rent receivable DEC14-MAR15,23/12/2014,395725,600,NET,Boots The Chemist,04540V
Gloucester City Council,23UE,Play Area Refurbishment,LY071,Contract Payments,0020,"The Lannett Play Area, Install springers",23/12/2014,392534,1746,CAP,Greenfields Garden Services Ltd,48130G
Gloucester City Council,23UE,Pollution Control,HE300,Fees For Services Received,5350,ANALYSIS,23/12/2014,395767,111.15,NET,Gradko International Ltd,11063B
Gloucester City Council,23UE,Postal Services,RS120,Postages,5400,Response Plus Service Nov- Dec 2014,23/12/2014,395814,246.76,NET,Royal Mail S.Wales & South West,35830S
Gloucester City Council,23UE,Registration Of Electors,RS400,Fees For Services Received,5350,"Storage Polling Booths, Sept 2014",23/12/2014,392136,235,NET,Armstrong Removals,04632N
Gloucester City Council,23UE,Registration Of Electors,RS400,Printing,5300,IER Mailings September 14,23/12/2014,391642,1706.57,NET,Alpha Response Print & Mail Ltd,03029U
Gloucester City Council,23UE,Registration Of Electors,RS400,Publications,5060,Schofields Election Law,23/12/2014,395492,158,NET,Thomson Reuters,43110M
Gloucester City Council,23UE,Rehousing,CH111,Fees For Services Received,5350,MEDICAL REPORT,23/12/2014,395742,20.5,NET,Gloucester Gp Consortium Company Ltd,11671N
Gloucester City Council,23UE,Retail Market - Landlord,HM300,Vocational Training,2970,Conference 29/01/2015,23/12/2014,395512,100,NET,Nabma,47998L
Gloucester City Council,23UE,Safer Stronger Communities,FP841,Other Minor Supplies Services,5590,FLYERS,23/12/2014,395717,428,NET,Culpepper & Company,15060M
Gloucester City Council,23UE,Stationery Services,RS150,Stationery,5302,LYRECO UK LTD,23/12/2014,395605,30.26,NET,Lyreco Uk Ltd,11746G
Gloucester City Council,23UE,Stationery Services,RS150,Stationery,5302,LYRECO UK LTD,23/12/2014,395606,25.29,NET,Lyreco Uk Ltd,11746G
Gloucester City Council,23UE,Stationery Services,RS150,Stationery,5302,LYRECO UK LTD,23/12/2014,395607,9.78,NET,Lyreco Uk Ltd,11746G
Gloucester City Council,23UE,Swrda Property Tfr,RB503,Advertising And Publicity,5702,Punchline DPS Nov/Dec,23/12/2014,395604,600,NET,Moose Marketing & Pr,03952A
Gloucester City Council,23UE,The Arbor,HC501,Catering Provisions -Food,5110,Food,23/12/2014,395827,12.4,NET,Total Produce Gloucester,12645E
Gloucester City Council,23UE,The Arbor,HC501,Catering Provisions -Food,5110,Food,23/12/2014,395828,17.62,NET,Total Produce Gloucester,12645E
Gloucester City Council,23UE,The Arbor,HC501,Catering Provisions -Food,5110,Food,23/12/2014,395829,21.12,NET,Total Produce Gloucester,12645E
Gloucester City Council,23UE,The Arbor,HC501,Catering Provisions -Food,5110,Food,23/12/2014,395830,17.27,NET,Total Produce Gloucester,12645E
Gloucester City Council,23UE,The Arbor,HC501,Catering Provisions -Food,5110,Food,23/12/2014,395831,43.63,NET,Total Produce Gloucester,12645E
Gloucester City Council,23UE,The Arbor,HC501,Catering Provisions -Food,5110,Food,23/12/2014,395832,25.84,NET,Total Produce Gloucester,12645E
Gloucester City Council,23UE,The Arbor,HC501,Catering Provisions -Food,5110,Food,23/12/2014,395833,29.91,NET,Total Produce Gloucester,12645E
Gloucester City Council,23UE,The Arbor,HC501,Catering Provisions -Food,5110,Food,23/12/2014,395834,20.79,NET,Total Produce Gloucester,12645E
Gloucester City Council,23UE,The Arbor,HC501,Catering Provisions -Food,5110,Food,23/12/2014,395835,16.5,NET,Total Produce Gloucester,12645E
Gloucester City Council,23UE,The Arbor,HC501,Catering Provisions -Food,5110,Food,23/12/2014,395836,19.61,NET,Total Produce Gloucester,12645E
Gloucester City Council,23UE,The Arbor,HC501,Catering Provisions -Food,5110,Food,23/12/2014,395837,384.12,NET,3663,55585U
Gloucester City Council,23UE,The Arbor,HC501,Catering Provisions -Food,5110,Food,23/12/2014,395839,160.99,NET,3663,55585U
Gloucester City Council,23UE,The Arbor,HC501,Catering Provisions -Food,5110,Food,23/12/2014,395848,583.48,NET,3663,55585U
Gloucester City Council,23UE,The Arbor,HC501,Catering Provisions -Food,5110,Food,23/12/2014,395849,158.78,NET,3663,55585U
Gloucester City Council,23UE,The Arbor,HC501,Catering Provisions -Food,5110,Food w/e 26/10/2014,23/12/2014,393053,162.8,NET,Janes Pantry,24500W
Gloucester City Council,23UE,The Arbor,HC501,Catering Provisions -Liquor,5111,DRINK,23/12/2014,395715,85.44,NET,Cellar Supplies Cheltenham Ltd,01563L
Gloucester City Council,23UE,The Arbor,HC501,Catering Provisions -Liquor,5111,DRINK,23/12/2014,395732,184.88,NET,Cellar Supplies Cheltenham Ltd,01563L
Gloucester City Council,23UE,The Arbor,HC501,Cleaning Materials,3600,Food,23/12/2014,395838,130,NET,3663,55585U
Gloucester City Council,23UE,The Arbor,HC501,Other Minor Supplies Services,5590,Flowers,23/12/2014,395823,34.4,NET,Carols Florist,01274X
Gloucester City Council,23UE,The Arbor,HC501,Other Minor Supplies Services,5590,Flowers,23/12/2014,395824,32.4,NET,Carols Florist,01274X
Gloucester City Council,23UE,The Arbor,HC501,Other Minor Supplies Services,5590,Flowers,23/12/2014,395825,45.45,NET,Carols Florist,01274X
Gloucester City Council,23UE,The Arbor,HC501,Other Minor Supplies Services,5590,Wreaths,23/12/2014,395822,22.5,NET,Carols Florist,01274X
Gloucester City Council,23UE,Tic Trading,LT110,Materials For Sale,5080,CLOTHING,23/12/2014,395719,960,NET,Sportfolio Europe Lp,14456R
Gloucester City Council,23UE,Townscape Heritage Initiative,LY145,Contract Payments,0020,ADVERT,23/12/2014,395746,400,CAP,Ihbc Enterprises Ltd,58032P
Gloucester City Council,23UE,Vehicles,RS140,Fuel,4012,Fuel,23/12/2014,395813,97.56,NET,Allstar Business Solutions Ltd (Arval),06594A
Gloucester City Council,23UE,REDACTED,REDACTED,REDACTED,REDACTED,REDACTED,23/12/2014,REDACTED,476,NET,REDACTED,REDACTED
Gloucester City Council,23UE,REDACTED,REDACTED,REDACTED,REDACTED,REDACTED,23/12/2014,REDACTED,374,NET,REDACTED,REDACTED
Gloucester City Council,23UE,REDACTED,REDACTED,REDACTED,REDACTED,REDACTED,23/12/2014,REDACTED,357,NET,REDACTED,REDACTED
Gloucester City Council,23UE,REDACTED,REDACTED,REDACTED,REDACTED,REDACTED,23/12/2014,REDACTED,377.83,NET,REDACTED,REDACTED
Gloucester City Council,23UE,REDACTED,REDACTED,REDACTED,REDACTED,REDACTED,23/12/2014,REDACTED,178.5,NET,REDACTED,REDACTED
Gloucester City Council,23UE,REDACTED,REDACTED,REDACTED,REDACTED,REDACTED,23/12/2014,REDACTED,148.75,NET,REDACTED,REDACTED
Gloucester City Council,23UE,REDACTED,REDACTED,REDACTED,REDACTED,REDACTED,23/12/2014,REDACTED,48.45,NET,REDACTED,REDACTED
Gloucester City Council,23UE,Business Grants,GY007,Contract Payments,0020,1ST INSTALLMENT OF BUSINESS GRANT,,396052,613.29,CAP,Roots Coffee & Community Cic,13358B
Gloucester City Council,23UE,REDACTED,REDACTED,REDACTED,REDACTED,REDACTED,,REDACTED,650,CAP,REDACTED,REDACTED
Gloucester City Council,23UE,REDACTED,REDACTED,REDACTED,REDACTED,REDACTED,,REDACTED,650,CAP,REDACTED,REDACTED
Gloucester City Council,23UE,REDACTED,REDACTED,REDACTED,REDACTED,REDACTED,,REDACTED,650,CAP,REDACTED,REDACTED
Gloucester City Council,23UE,City Museum And Art Gallery,LM200,Publications For Sale,5064,Gloucestershire New Flag,,393903,103.1,NET,Midland Imports,13825R
Gloucester City Council,23UE,Civica Admin Charges,RT105,Fees For Services Received,5350,CHD Subscription,,394926,4,NET,Companies House,58954E
Gloucester City Council,23UE,Civica Admin Charges,RT105,Fees For Services Received,5350,CHD Subscription Advance,,394034,4,NET,Companies House,58954E
Gloucester City Council,23UE,Client Revs & Bens Contract,RT240,Bailiffs Fees,5368,VAT ONLY INVOICE,,395731,0,NET,Bristow & Sutor,05450M
Gloucester City Council,23UE,Client Revs & Bens Contract,RT240,Bailiffs Fees,5368,VAT ONLY INVOICE,,395755,0,NET,Bristow & Sutor,05450M
Gloucester City Council,23UE,Contact Centre,RB300,Basic Pay -Admin /Prof Staff,2601,STAFF W/E 19/12/14,,396015,567.82,NET,One To One Recruitment,04752H
Gloucester City Council,23UE,Council Streetcare Team,HI101,Other Minor Supplies Services,5590,Various Items,,395531,660,NET,Wybone Limited,13540L
Gloucester City Council,23UE,Crematorium,HC200,Cleaning Materials,3600,TOWEL SERVICE JAN-MAR15,,396058,77.56,NET,Initial Washroom Solutions,24219P
Gloucester City Council,23UE,Docks Complex - Services,RB100,Service Charges,3020,Crematorium,,390979,127.5,NET,Greenworks Solutions Ltd,05909G
Gloucester City Council,23UE,Docks Complex - Telephones,RB120,Telephones And Fax,5410,Call Charges Oct 2014,,393723,2295.37,NET,Gamma Business Communications,10260A
Gloucester City Council,23UE,Docks Complex - Telephones,RB120,Telephones And Fax,5410,Call Charges Oct 2014,,393958,3948.11,NET,Gamma Business Communications,10260A
Gloucester City Council,23UE,Events,LT410,Fees For Services Received,5350,security for Docks Firework Display,,396026,1168,NET,Nsgl Ltd,12539E
Gloucester City Council,23UE,Financial Services,RT200,Consultants Fees,5349,temporary staff w/e 18/7/14,,396043,3000,NET,Robert Half Ltd,03959K
Gloucester City Council,23UE,Financial Services,RT200,Consultants Fees,5349,temporary staff w/e 11/07/2014,,388144,3975,NET,Robert Half Ltd,03959K
Gloucester City Council,23UE,Financial Services,RT200,Consultants Fees,5349,temporary staff w/e 11/7/14,,396042,3000,NET,Robert Half Ltd,03959K
Gloucester City Council,23UE,Financial Services,RT200,Consultants Fees,5349,temporary staff w/e 18/07/2014,,389260,3975,NET,Robert Half Ltd,03959K
Gloucester City Council,23UE,Financial Services,RT200,Consultants Fees,5349,temporary staff w/e 1/8/14,,388819,3975,NET,Robert Half Ltd,03959K
Gloucester City Council,23UE,Financial Services,RT200,Consultants Fees,5349,temporary staff w/e1/8/14,,396045,3000,NET,Robert Half Ltd,03959K
Gloucester City Council,23UE,Financial Services,RT200,Consultants Fees,5349,temporary staff w/e 25/7/14,,388488,3975,NET,Robert Half Ltd,03959K
Gloucester City Council,23UE,Financial Services,RT200,Consultants Fees,5349,temporary staff w/e 25/7/14,,396044,3000,NET,Robert Half Ltd,03959K
Gloucester City Council,23UE,Gloucester Guildhall,LA100,Operational Equipment <5000,5012,speaker plug,,394753,4.16,NET,Cpc,52980M
Gloucester City Council,23UE,REDACTED,REDACTED,REDACTED,REDACTED,REDACTED,,REDACTED,300,NET,REDACTED,REDACTED
Gloucester City Council,23UE,Grants To Voluntary Sector,FG100,Members Allocation Fund,7100F,furniture,,396025,992.02,NET,Tuffley Community Association,03719J
Gloucester City Council,23UE,REDACTED,REDACTED,REDACTED,REDACTED,REDACTED,,REDACTED,2555,NET,REDACTED,REDACTED
Gloucester City Council,23UE,Hackney Carriages,HL100,Fees For Services Received,5350,November 2014,,395066,880,NET,Disclosure And Barring Service,00119W
Gloucester City Council,23UE,Head Of Neighbourhood Services,GN100,Public Transportation,4061,ILM Training,,396022,404,NET,Kba Solutions Ltd,14244J
Gloucester City Council,23UE,Health And Safety,HD300,Other Minor Supplies Services,5590,thrs window stickers,,396028,29.5,NET,Cieh Wales Directorate,15026M
Gloucester City Council,23UE,Hempsted Market/Car Boot,HM234,Hire Of Equipment,5020,DEC 2014,,394951,254.19,NET,Portable Offices (Hire ) Ltd*,06286R
Gloucester City Council,23UE,Human Resources,EH100,Fees For Services Received,5350,NOVEMBER 2014 PAYROLL CHARGES,,394975,2695.74,NET,Gloucestershire County Council,18650D
Gloucester City Council,23UE,Human Resources,EH100,Fees For Services Received,5350,EMPLOYEE COUNSELLING NOV14-OCT15,,396049,1374.13,NET,REDACTED,REDACTED
Gloucester City Council,23UE,Investment Property,RB500,Repair/Maint Of Fixed Plant,3006,Contract Remedials 08/10/2014,,392941,2685,NET,Airvent Systems Limited,51073T
Gloucester City Council,23UE,Legal Services,RS200,Basic Pay - Temporary Staff,2751,temporary staff w/e 28/12,,396038,187.5,NET,Paystream My Max Limited,15049Z
Gloucester City Council,23UE,Northwarehouse,RB150,Lift Maintenance,3051,"Lift 1, Council Offices, Nov-Feb",,391672,670.19,NET,Schindler Ltd,06826C
Gloucester City Council,23UE,Postal Services,RS120,Postages,5400,ENVELOPES C5 2ND CLASS NON-WINDOW,,396056,141.66,NET,Encore Envelopes Ltd,13782H
Gloucester City Council,23UE,Postal Services,RS120,Postages,5400,ENVELOPES C5 2ND CLASS WINDOW,,396057,142.62,NET,Encore Envelopes Ltd,13782H
Gloucester City Council,23UE,Retail Market - Landlord,HM300,Operational Equipment <5000,5012,Rental,,394968,280.56,NET,System Rental Uk Ltd,03239E
Gloucester City Council,23UE,Retail Market - Landlord,HM300,Sewerage And Environ Charges,3402,CREDITED ON E019297/11,,395027,316.5,NET,Pakawaste Ltd,02969S
Gloucester City Council,23UE,Retail Market - Landlord,HM300,Trade Refuse Collection,3630,DEC14 FOOD WASTE COLLECTIONS,,396051,120,NET,B & S Pointon Ltd,06253G
Gloucester City Council,23UE,Superbreak,LT104,Materials For Sale,5080,COMMISSION RE HOTEL BOOKING,,395720,129,NET,Superbreak Mini Holidays,00712D
Gloucester City Council,23UE,Superbreak,LT104,Sale Of Goods And Services,9230,COMMISSION RE HOTEL BOOKING,,395720,-10.75,NET,Superbreak Mini Holidays,00712D
Gloucester City Council,23UE,Taxi Marshalling Scheme,HL101,Taxi Marshals,5387,TAXI MARSHALLS,,395999,172.5,NET,Cuff Security Services Ltd,12073G
Gloucester City Council,23UE,Taxi Marshalling Scheme,HL101,Taxi Marshals,5387,TAXI MARSHALLS,,396001,172.5,NET,Cuff Security Services Ltd,12073G
Gloucester City Council,23UE,Taxi Marshalling Scheme,HL101,Taxi Marshals,5387,TAXI MARSHALLS,,396002,172.5,NET,Cuff Security Services Ltd,12073G
Gloucester City Council,23UE,Taxi Marshalling Scheme,HL101,Taxi Marshals,5387,TAXI MARSHALLS,,396003,172.5,NET,Cuff Security Services Ltd,12073G
Gloucester City Council,23UE,Taxi Marshalling Scheme,HL101,Taxi Marshals,5387,TAXI MARSHALLS,,396004,126.5,NET,Cuff Security Services Ltd,12073G
Gloucester City Council,23UE,Taxi Marshalling Scheme,HL101,Taxi Marshals,5387,TAXI MARSHALLS,,396005,158.13,NET,Cuff Security Services Ltd,12073G
Gloucester City Council,23UE,Taxi Marshalling Scheme,HL101,Taxi Marshals,5387,TAXI MARSHALLS,,396006,172.5,NET,Cuff Security Services Ltd,12073G
Gloucester City Council,23UE,Taxi Marshalling Scheme,HL101,Taxi Marshals,5387,TAXI MARSHALLS,,396007,172.5,NET,Cuff Security Services Ltd,12073G
Gloucester City Council,23UE,Taxi Marshalling Scheme,HL101,Taxi Marshals,5387,TAXI MARSHALLS,,396008,172.5,NET,Cuff Security Services Ltd,12073G
Gloucester City Council,23UE,The Arbor,HC501,Catering Provisions -Food,5110,FOOD,,394547,62.25,NET,Janes Pantry,24500W
Gloucester City Council,23UE,The Arbor,HC501,Catering Provisions -Food,5110,FOOD,,394959,184.42,NET,Janes Pantry,24500W
Gloucester City Council,23UE,The Arbor,HC501,Catering Provisions -Food,5110,Food w/e 07/12/2014,,395274,112.29,NET,Janes Pantry,24500W
Gloucester City Council,23UE,The Arbor,HC501,Operational Equipment <5000,5012,Catering Supplies,,394468,168.78,NET,Nisbets,55372P
Gloucester City Council,23UE,The Arbor,HC501,Operational Equipment <5000,5012,Henry Vacuum Cleaner,,392537,109.99,NET,Nisbets,55372P
,,,,,,,,Sum:,2294029.26,,,
